Workbook

Sheet _xltb_storage_ (hidden)
A1: XL Toolbox Settings
B2: export_path | C2: C:\Users\Thomas Oscar\Documents\My Documents\2020\2020r\2020Z\JFPP -02-21-0420 v2 r1 Fig 4.png

Sheet 1
A1: Validation Tool for Predictive Microbiology (Version 1.0) | E1: ValT
A4: Spreadsheet | B4: Description
A5: 2 | B5: Dependent Data Input
A6: 3 | B6: Decision Tree for Dependent Data
A7: 4 | B7: Independent Data for Interpolation
A8: 5 | B8: Decision Tree for Interpolation
A9: 6 | B9: Independent Data for Extrapolation
A10: 7 | B10: Decision Tree for Extrapolation
A11: Welcome to ValT (vault) a spreadsheet tool for validation of models that predict the growth (log number) of human bacterial pathogens in food as a function of two independent variables. ValT was developed by the U. S. Department of Agriculture, Agricultural Research Service. It is based on the test data and model performance criteria of the acceptable prediction zones (APZ) method.
AB28: 0.5 | AC28: 0.5 | AD28: =-2*AC28 -> -1 | AF28: 0.86 | AG28: -0.53 | AI28: 0.5 | AJ28: 1 | AK28: =-2*AJ28 -> -2
AB29: 0.6 | AC29: 0.5 | AD29: -1 | AF29: 0.95 | AG29: -0.53 | AI29: 0.6 | AJ29: 1 | AK29: -2
AB30: 0.7 | AC30: 0.5 | AD30: -1 | AF30: 0.55 | AG30: -0.53 | AI30: 0.7 | AJ30: 1 | AK30: -2
AB31: 0.8 | AC31: 0.5 | AD31: -1 | AF31: 0.55 | AG31: -0.1 | AI31: 0.8 | AJ31: 1 | AK31: -2
AB32: 0.9 | AC32: 0.5 | AD32: -1 | AF32: 0.55 | AG32: -0.1 | AI32: 0.9 | AJ32: 1 | AK32: -2
AB33: 1 | AC33: 0.5 | AD33: -1 | AF33: 0.98 | AG33: -0.1 | AI33: 1 | AJ33: 1 | AK33: -2
AB34: 1.1 | AC34: 0.5 | AD34: -1 | AF34: 0.98 | AG34: -0.1 | AI34: 1.1 | AJ34: 1 | AK34: -2
AB35: 1.2 | AC35: 0.5 | AD35: -1 | AF35: 0.98 | AG35: 0.37 | AI35: 1.2 | AJ35: 1 | AK35: -2
AB36: 1.3 | AC36: 0.5 | AD36: -1 | AF36: 0.98 | AG36: -0.67 | AI36: 1.3 | AJ36: 1 | AK36: -2
AB37: 1.4 | AC37: 0.5 | AD37: -1 | AF37: 1.45 | AG37: -0.34 | AI37: 1.4 | AJ37: 1 | AK37: -2
AB38: 1.5 | AC38: 0.5 | AD38: -1 | AF38: 0.98 | AG38: -0.2 | AI38: 1.5 | AJ38: 1 | AK38: -2
AB39: 1.6 | AC39: 0.5 | AD39: -1 | AF39: 1.31 | AG39: -0.2 | AI39: 1.6 | AJ39: 1 | AK39: -2
AB40: 1.7 | AC40: 0.5 | AD40: -1 | AF40: 1.45 | AG40: 0.01 | AI40: 1.7 | AJ40: 1 | AK40: -2
AB41: 1.8 | AC41: 0.5 | AD41: -1 | AF41: 1.45 | AG41: 0.11 | AI41: 1.8 | AJ41: 1 | AK41: -2
AB42: 1.9 | AC42: 0.5 | AD42: -1 | AF42: 1.66 | AG42: 0.23 | AI42: 1.9 | AJ42: 1 | AK42: -2
AB43: 2 | AC43: 0.5 | AD43: -1 | AF43: 1.76 | AG43: 0.61 | AI43: 2 | AJ43: 1 | AK43: -2
AB44: 2.1 | AC44: 0.5 | AD44: -1 | AF44: 1.88 | AG44: -0.94 | AI44: 2.1 | AJ44: 1 | AK44: -2
AB45: 2.2 | AC45: 0.5 | AD45: -1 | AF45: 2.26 | AG45: -0.34 | AI45: 2.2 | AJ45: 1 | AK45: -2
AB46: 2.3 | AC46: 0.5 | AD46: -1 | AF46: 1.66 | AG46: -0.2 | AI46: 2.3 | AJ46: 1 | AK46: -2
AB47: 2.4 | AC47: 0.5 | AD47: -1 | AF47: 2.26 | AG47: -0.2 | AI47: 2.4 | AJ47: 1 | AK47: -2
AB48: 2.5 | AC48: 0.5 | AD48: -1 | AF48: 2.4 | AG48: -0.13 | AI48: 2.5 | AJ48: 1 | AK48: -2
AB49: 2.6 | AC49: 0.5 | AD49: -1 | AF49: 2.4 | AG49: -0.02 | AI49: 2.6 | AJ49: 1 | AK49: -2
AB50: 2.7 | AC50: 0.5 | AD50: -1 | AF50: 2.47 | AG50: 0.65 | AI50: 2.7 | AJ50: 1 | AK50: -2
AB51: 2.8 | AC51: 0.5 | AD51: -1 | AF51: 2.58 | AG51: 0.76 | AI51: 2.8 | AJ51: 1 | AK51: -2
AB52: 2.9 | AC52: 0.5 | AD52: -1 | AF52: 3.25 | AG52: -0.84 | AI52: 2.9 | AJ52: 1 | AK52: -2
AB53: 3 | AC53: 0.5 | AD53: -1 | AF53: 3.36 | AG53: -0.84 | AI53: 3 | AJ53: 1 | AK53: -2
AB54: 3.1 | AC54: 0.5 | AD54: -1 | AF54: 2.93 | AG54: -0.7 | AI54: 3.1 | AJ54: 1 | AK54: -2
AB55: 3.2 | AC55: 0.5 | AD55: -1 | AF55: 2.93 | AG55: -0.51 | AI55: 3.2 | AJ55: 1 | AK55: -2
AB56: 3.3 | AC56: 0.5 | AD56: -1 | AF56: 3.07 | AG56: -0.37 | AI56: 3.3 | AJ56: 1 | AK56: -2
AB57: 3.4 | AC57: 0.5 | AD57: -1 | AF57: 3.26 | AG57: 0.12 | AI57: 3.4 | AJ57: 1 | AK57: -2
AB58: 3.5 | AC58: 0.5 | AD58: -1 | AF58: 3.4 | AG58: 0.13 | AI58: 3.5 | AJ58: 1 | AK58: -2
AB59: 3.6 | AC59: 0.5 | AD59: -1 | AF59: 3.89 | AG59: 0.78 | AI59: 3.6 | AJ59: 1 | AK59: -2
AB60: 3.7 | AC60: 0.5 | AD60: =-2*AC60 -> -1 | AF60: 3.9 | AG60: -0.11 | AI60: 3.7 | AJ60: 1 | AK60: =-2*AJ60 -> -2
AB61: 3.8 | AC61: 0.5 | AD61: -1 | AF61: 4.55 | AG61: 0 | AI61: 3.8 | AJ61: 1 | AK61: -2
AB62: 3.9 | AC62: 0.5 | AD62: -1 | AF62: 0.74 | AG62: 0 | AI62: 3.9 | AJ62: 1 | AK62: -2
AB63: 4 | AC63: 0.5 | AD63: -1 | AF63: 0.85 | AG63: 0.05 | AI63: 4 | AJ63: 1 | AK63: -2
AB64: 4.1 | AC64: 0.5 | AD64: -1 | AF64: 0.85 | AG64: 0.05 | AI64: 4.1 | AJ64: 1 | AK64: -2
AB65: 4.2 | AC65: 0.5 | AD65: -1 | AF65: 0.9 | AG65: 0.05 | AI65: 4.2 | AJ65: 1 | AK65: -2
AB66: 4.3 | AC66: 0.5 | AD66: -1 | AF66: 0.9 | AG66: 0.08 | AI66: 4.3 | AJ66: 1 | AK66: -2
AB67: 4.4 | AC67: 0.5 | AD67: -1 | AF67: 0.9 | AG67: 0.13 | AI67: 4.4 | AJ67: 1 | AK67: -2
AB68: 4.5 | AC68: 0.5 | AD68: -1 | AF68: 0.93 | AG68: -0.18 | AI68: 4.5 | AJ68: 1 | AK68: -2
AB69: 4.6 | AC69: 0.5 | AD69: -1 | AF69: 0.98 | AG69: -0.18 | AI69: 4.6 | AJ69: 1 | AK69: -2
AB70: 4.7 | AC70: 0.5 | AD70: -1 | AF70: 0.98 | AG70: -0.18 | AI70: 4.7 | AJ70: 1 | AK70: -2
AB71: 4.8 | AC71: 0.5 | AD71: -1 | AF71: 0.98 | AG71: -0.18 | AI71: 4.8 | AJ71: 1 | AK71: -2
AB72: 4.9 | AC72: 0.5 | AD72: -1 | AF72: 0.98 | AG72: -0.11 | AI72: 4.9 | AJ72: 1 | AK72: -2
AB73: 5 | AC73: 0.5 | AD73: -1 | AF73: 0.98 | AG73: 0.29 | AI73: 5 | AJ73: 1 | AK73: -2
AB74: 5.1 | AC74: 0.5 | AD74: -1 | AF74: 1.05 | AG74: 0.29 | AI74: 5.1 | AJ74: 1 | AK74: -2
AB75: 5.2 | AC75: 0.5 | AD75: -1 | AF75: 1.45 | AG75: 0.29 | AI75: 5.2 | AJ75: 1 | AK75: -2
AB76: 5.3 | AC76: 0.5 | AD76: -1 | AF76: 1.45 | AG76: -1.02 | AI76: 5.3 | AJ76: 1 | AK76: -2
AB77: 5.4 | AC77: 0.5 | AD77: -1 | AF77: 1.45 | AG77: -0.86 | AI77: 5.4 | AJ77: 1 | AK77: -2
AB78: 5.5 | AC78: 0.5 | AD78: -1 | AF78: 1.15 | AG78: -0.51 | AI78: 5.5 | AJ78: 1 | AK78: -2
AB79: 5.6 | AC79: 0.5 | AD79: -1 | AF79: 1.31 | AG79: -0.51 | AI79: 5.6 | AJ79: 1 | AK79: -2
AB80: 5.7 | AC80: 0.5 | AD80: -1 | AF80: 1.66 | AG80: -0.29 | AI80: 5.7 | AJ80: 1 | AK80: -2
AB81: 5.8 | AC81: 0.5 | AD81: -1 | AF81: 1.66 | AG81: 0.09 | AI81: 5.8 | AJ81: 1 | AK81: -2
AB82: 5.9 | AC82: 0.5 | AD82: -1 | AF82: 1.88 | AG82: 0.23 | AI82: 5.9 | AJ82: 1 | AK82: -2
AB83: 6 | AC83: 0.5 | AD83: -1 | AF83: 2.26 | AG83: 0.41 | AI83: 6 | AJ83: 1 | AK83: -2
AB84: 6.1 | AC84: 0.5 | AD84: -1 | AF84: 2.4 | AG84: -0.62 | AI84: 6.1 | AJ84: 1 | AK84: -2
AB85: 6.2 | AC85: 0.5 | AD85: -1 | AF85: 2.58 | AG85: -0.35 | AI85: 6.2 | AJ85: 1 | AK85: -2
AB86: 6.3 | AC86: 0.5 | AD86: -1 | AF86: 3.21 | AG86: -0.22 | AI86: 6.3 | AJ86: 1 | AK86: -2
AB87: 6.4 | AC87: 0.5 | AD87: -1 | AF87: 3.48 | AG87: -0.06 | AI87: 6.4 | AJ87: 1 | AK87: -2
AB88: 6.5 | AC88: 0.5 | AD88: =-2*AC88 -> -1 | AF88: 3.61 | AG88: 0.01 | AI88: 6.5 | AJ88: 1 | AK88: =-2*AJ88 -> -2
AB89: 6.6 | AC89: 0.5 | AD89: -1 | AF89: 3.77 | AG89: 0.25 | AI89: 6.6 | AJ89: 1 | AK89: -2
AB90: 6.7 | AC90: 0.5 | AD90: -1 | AF90: 3.84 | AG90: 0.35 | AI90: 6.7 | AJ90: 1 | AK90: -2
AB91: 6.8 | AC91: 0.5 | AD91: -1 | AF91: 4.08 | AG91: 0.47 | AI91: 6.8 | AJ91: 1 | AK91: -2
AB92: 6.9 | AC92: 0.5 | AD92: -1 | AF92: 4.18 | AG92: -1.48 | AI92: 6.9 | AJ92: 1 | AK92: -2
AB93: 7 | AC93: 0.5 | AD93: -1 | AF93: 4.3 | AG93: -0.68 | AI93: 7 | AJ93: 1 | AK93: -2
AB94: 7.1 | AC94: 0.5 | AD94: -1 | AF94: 4.21 | AG94: -0.45 | AI94: 7.1 | AJ94: 1 | AK94: -2
AB95: 7.2 | AC95: 0.5 | AD95: -1 | AF95: 5.01 | AG95: -0.31 | AI95: 7.2 | AJ95: 1 | AK95: -2
AB96: 7.3 | AC96: 0.5 | AD96: -1 | AF96: 5.24 | AG96: -0.16 | AI96: 7.3 | AJ96: 1 | AK96: -2
AB97: 7.4 | AC97: 0.5 | AD97: -1 | AF97: 5.38 | AG97: -0.15 | AI97: 7.4 | AJ97: 1 | AK97: -2
AB98: 7.5 | AC98: 0.5 | AD98: -1 | AF98: 5.53 | AG98: 0.05 | AI98: 7.5 | AJ98: 1 | AK98: -2
AB99: 7.6 | AC99: 0.5 | AD99: -1 | AF99: 5.54 | AG99: 0.07 | AI99: 7.6 | AJ99: 1 | AK99: -2
AB100: 7.7 | AC100: 0.5 | AD100: -1 | AF100: 5.74 | AG100: -0.07 | AI100: 7.7 | AJ100: 1 | AK100: -2
AB101: 7.8 | AC101: 0.5 | AD101: -1 | AF101: 5.76 | AG101: -0.07 | AI101: 7.8 | AJ101: 1 | AK101: -2
AB102: 7.9 | AC102: 0.5 | AD102: -1 | AF102: 0.78 | AG102: 0 | AI102: 7.9 | AJ102: 1 | AK102: -2
AB103: 8 | AC103: 0.5 | AD103: -1 | AF103: 0.78 | AG103: 0 | AI103: 8 | AJ103: 1 | AK103: -2
AB104: 8.1 | AC104: 0.5 | AD104: -1 | AF104: 0.85 | AG104: 0 | AI104: 8.1 | AJ104: 1 | AK104: -2
AB105: 8.2 | AC105: 0.5 | AD105: -1 | AF105: 0.85 | AG105: 0 | AI105: 8.2 | AJ105: 1 | AK105: -2
AB106: 8.3 | AC106: 0.5 | AD106: -1 | AF106: 0.85 | AG106: 0 | AI106: 8.3 | AJ106: 1 | AK106: -2
AB107: 8.4 | AC107: 0.5 | AD107: -1 | AF107: 0.85 | AG107: 0.1 | AI107: 8.4 | AJ107: 1 | AK107: -2
AB108: 8.5 | AC108: 0.5 | AD108: -1 | AF108: 0.85 | AG108: -0.73 | AI108: 8.5 | AJ108: 1 | AK108: -2
AB109: 8.6 | AC109: 0.5 | AD109: -1 | AF109: 0.95 | AG109: -0.66 | AI109: 8.6 | AJ109: 1 | AK109: -2
AB110: 8.7 | AC110: 0.5 | AD110: -1 | AF110: 0.48 | AG110: -0.66 | AI110: 8.7 | AJ110: 1 | AK110: -2
AB111: 8.8 | AC111: 0.5 | AD111: -1 | AF111: 0.55 | AG111: -0.34 | AI111: 8.8 | AJ111: 1 | AK111: -2
AB112: 8.9 | AC112: 0.5 | AD112: -1 | AF112: 0.55 | AG112: -0.23 | AI112: 8.9 | AJ112: 1 | AK112: -2
AB113: 9 | AC113: 0.5 | AD113: -1 | AF113: 0.87 | AG113: -0.23 | AI113: 9 | AJ113: 1 | AK113: -2
AB114: 9.1 | AC114: 0.5 | AD114: -1 | AF114: 0.98 | AG114: -0.23 | AI114: 9.1 | AJ114: 1 | AK114: -2
AB115: 9.2 | AC115: 0.5 | AD115: -1 | AF115: 0.98 | AG115: -0.23 | AI115: 9.2 | AJ115: 1 | AK115: -2
AB116: 9.3 | AC116: 0.5 | AD116: -1 | AF116: 0.98 | AG116: -0.56 | AI116: 9.3 | AJ116: 1 | AK116: -2
AB117: 9.4 | AC117: 0.5 | AD117: -1 | AF117: 0.98 | AG117: -0.27 | AI117: 9.4 | AJ117: 1 | AK117: -2
AB118: 9.5 | AC118: 0.5 | AD118: -1 | AF118: 1.97 | AG118: -0.13 | AI118: 9.5 | AJ118: 1 | AK118: -2
AB119: 9.6 | AC119: 0.5 | AD119: -1 | AF119: 2.26 | AG119: -0.13 | AI119: 9.6 | AJ119: 1 | AK119: -2
AB120: 9.7 | AC120: 0.5 | AD120: -1 | AF120: 2.4 | AG120: 0.05 | AI120: 9.7 | AJ120: 1 | AK120: -2
AB121: 9.8 | AC121: 0.5 | AD121: -1 | AF121: 2.4 | AG121: 0.05 | AI121: 9.8 | AJ121: 1 | AK121: -2
AB122: 9.9 | AC122: 0.5 | AD122: -1 | AF122: 2.58 | AG122: 0.4 | AI122: 9.9 | AJ122: 1 | AK122: -2
AB123: 10 | AC123: 0.5 | AD123: -1 | AF123: 2.58 | AG123: 0.54 | AI123: 10 | AJ123: 1 | AK123: -2
AF124: 2.93 | AG124: -0.71
AF125: 3.07 | AG125: -0.51
AF126: 3.85 | AG126: 0.27
AF127: 4.05 | AG127: 0.56
AF128: 4.83 | AG128: 0.63
AF129: 5.12 | AG129: 0.66
AF130: 5.19 | AG130: 0.72
AF131: 5.22 | AG131: -0.69
AF132: 5.28 | AG132: -0.43
AF133: 6.06 | AG133: -0.42
AF134: 6.32 | AG134: -0.2
AF135: 6.33 | AG135: -0.01
AF136: 6.55 | AG136: 0.06
AF137: 6.74 | AG137: 0.29
AF138: 6.81 | AG138: 0.62
AF139: 7.04 | AG139: 0.29
AF140: 7.37 | AG140: 0.62

Sheet 2
A1: Temp | B1: Time | C1: Observed | D1: Predicted | E1: Residual | F1: APZ
A2: 16 | B2: 0 | C2: 1.01 | D2: 0.83852685 | E2: =IF(C2="","",IF(C2*D2<0,-2.5,C2-D2)) -> 0.17147315 | F2: =IF(E2="","",IF(E2<-2,0,IF(E2>1,0,VLOOKUP(E2,'8'!$A$2:$B$1503,2,TRUE)))) -> 1
A3: 16 | B3: 0 | C3: 1.01 | D3: 0.83852685 | E3: =IF(C3="","",IF(C3*D3<0,-2.5,C3-D3)) -> 0.17147315 | F3: =IF(E3="","",IF(E3<-2,0,IF(E3>1,0,VLOOKUP(E3,'8'!$A$2:$B$1503,2,TRUE)))) -> 1
A4: 16 | B4: 0 | C4: 1.01 | D4: 0.83852685 | E4: 0.17147315 | F4: =IF(E4="","",IF(E4<-2,0,IF(E4>1,0,VLOOKUP(E4,'8'!$A$2:$B$1503,2,TRUE)))) -> 1
A5: 16 | B5: 0 | C5: 1.16 | D5: 0.83852685 | E5: =IF(C5="","",IF(C5*D5<0,-2.5,C5-D5)) -> 0.32147315 | F5: =IF(E5="","",IF(E5<-2,0,IF(E5>1,0,VLOOKUP(E5,'8'!$A$2:$B$1503,2,TRUE)))) -> 1
A6: 16 | B6: 2 | C6: 0.9 | D6: 0.844806093 | E6: 0.05519390696 | F6: =IF(E6="","",IF(E6<-2,0,IF(E6>1,0,VLOOKUP(E6,'8'!$A$2:$B$1503,2,TRUE)))) -> 1
A7: 16 | B7: 2 | C7: 1.01 | D7: 0.844806093 | E7: 0.165193907 | F7: =IF(E7="","",IF(E7<-2,0,IF(E7>1,0,VLOOKUP(E7,'8'!$A$2:$B$1503,2,TRUE)))) -> 1
A8: 16 | B8: 2 | C8: 1.01 | D8: 0.844806093 | E8: 0.165193907 | F8: =IF(E8="","",IF(E8<-2,0,IF(E8>1,0,VLOOKUP(E8,'8'!$A$2:$B$1503,2,TRUE)))) -> 1
A9: 16 | B9: 2 | C9: 1.01 | D9: 0.844806093 | E9: 0.165193907 | F9: =IF(E9="","",IF(E9<-2,0,IF(E9>1,0,VLOOKUP(E9,'8'!$A$2:$B$1503,2,TRUE)))) -> 1
A10: 16 | B10: 4 | C10: 0.72 | D10: 0.863502257 | E10: -0.143502257 | F10: =IF(E10="","",IF(E10<-2,0,IF(E10>1,0,VLOOKUP(E10,'8'!$A$2:$B$1503,2,TRUE)))) -> 1
A11: 16 | B11: 4 | C11: 0.72 | D11: 0.863502257 | E11: =IF(C11="","",IF(C11*D11<0,-2.5,C11-D11)) -> -0.143502257 | F11: =IF(E11="","",IF(E11<-2,0,IF(E11>1,0,VLOOKUP(E11,'8'!$A$2:$B$1503,2,TRUE)))) -> 1
A12: 16 | B12: 4 | C12: 0.72 | D12: 0.863502257 | E12: -0.143502257 | F12: =IF(E12="","",IF(E12<-2,0,IF(E12>1,0,VLOOKUP(E12,'8'!$A$2:$B$1503,2,TRUE)))) -> 1
A13: 16 | B13: 4 | C13: 1.16 | D13: 0.863502257 | E13: 0.296497743 | F13: =IF(E13="","",IF(E13<-2,0,IF(E13>1,0,VLOOKUP(E13,'8'!$A$2:$B$1503,2,TRUE)))) -> 1
A14: 16 | B14: 6 | C14: 0.72 | D14: 0.9058514766 | E14: -0.1858514766 | F14: =IF(E14="","",IF(E14<-2,0,IF(E14>1,0,VLOOKUP(E14,'8'!$A$2:$B$1503,2,TRUE)))) -> 1
A15: 16 | B15: 6 | C15: 1.01 | D15: 0.9058514766 | E15: 0.1041485234 | F15: =IF(E15="","",IF(E15<-2,0,IF(E15>1,0,VLOOKUP(E15,'8'!$A$2:$B$1503,2,TRUE)))) -> 1
A16: 16 | B16: 6 | C16: 1.01 | D16: 0.9058514766 | E16: 0.1041485234 | F16: =IF(E16="","",IF(E16<-2,0,IF(E16>1,0,VLOOKUP(E16,'8'!$A$2:$B$1503,2,TRUE)))) -> 1
A17: 16 | B17: 6 | C17: 1.01 | D17: 0.9058514766 | E17: 0.1041485234 | F17: =IF(E17="","",IF(E17<-2,0,IF(E17>1,0,VLOOKUP(E17,'8'!$A$2:$B$1503,2,TRUE)))) -> 1
A18: 16 | B18: 8 | C18: 0.72 | D18: 0.9939952483 | E18: -0.2739952483 | F18: =IF(E18="","",IF(E18<-2,0,IF(E18>1,0,VLOOKUP(E18,'8'!$A$2:$B$1503,2,TRUE)))) -> 1
A19: 16 | B19: 8 | C19: 1.01 | D19: 0.9939952483 | E19: 0.01600475166 | F19: =IF(E19="","",IF(E19<-2,0,IF(E19>1,0,VLOOKUP(E19,'8'!$A$2:$B$1503,2,TRUE)))) -> 1
A20: 16 | B20: 8 | C20: 1.16 | D20: 0.9939952483 | E20: 0.1660047517 | F20: =IF(E20="","",IF(E20<-2,0,IF(E20>1,0,VLOOKUP(E20,'8'!$A$2:$B$1503,2,TRUE)))) -> 1
A21: 16 | B21: 8 | C21: 1.44 | D21: 0.9939952483 | E21: 0.4460047517 | F21: =IF(E21="","",IF(E21<-2,0,IF(E21>1,0,VLOOKUP(E21,'8'!$A$2:$B$1503,2,TRUE)))) -> 1
A22: 20 | B22: 0 | C22: 0.34 | D22: 0.8386828181 | E22: -0.4986828181 | F22: =IF(E22="","",IF(E22<-2,0,IF(E22>1,0,VLOOKUP(E22,'8'!$A$2:$B$1503,2,TRUE)))) -> 1
A23: 20 | B23: 0 | C23: 0.52 | D23: 0.8386828181 | E23: -0.3186828181 | F23: =IF(E23="","",IF(E23<-2,0,IF(E23>1,0,VLOOKUP(E23,'8'!$A$2:$B$1503,2,TRUE)))) -> 1
A24: 20 | B24: 0 | C24: 0.72 | D24: 0.8386828181 | E24: -0.1186828181 | F24: =IF(E24="","",IF(E24<-2,0,IF(E24>1,0,VLOOKUP(E24,'8'!$A$2:$B$1503,2,TRUE)))) -> 1
A25: 20 | B25: 0 | C25: 1.01 | D25: 0.8386828181 | E25: 0.1713171819 | F25: =IF(E25="","",IF(E25<-2,0,IF(E25>1,0,VLOOKUP(E25,'8'!$A$2:$B$1503,2,TRUE)))) -> 1
A26: 20 | B26: 2 | C26: 0.72 | D26: 0.8468962437 | E26: -0.1268962437 | F26: =IF(E26="","",IF(E26<-2,0,IF(E26>1,0,VLOOKUP(E26,'8'!$A$2:$B$1503,2,TRUE)))) -> 1
A27: 20 | B27: 2 | C27: 0.74 | D27: 0.8468962437 | E27: -0.1068962437 | F27: =IF(E27="","",IF(E27<-2,0,IF(E27>1,0,VLOOKUP(E27,'8'!$A$2:$B$1503,2,TRUE)))) -> 1
A28: 20 | B28: 2 | C28: 1.01 | D28: 0.8468962437 | E28: 0.1631037563 | F28: =IF(E28="","",IF(E28<-2,0,IF(E28>1,0,VLOOKUP(E28,'8'!$A$2:$B$1503,2,TRUE)))) -> 1
A29: 20 | B29: 2 | C29: 1.01 | D29: 0.8468962437 | E29: 0.1631037563 | F29: =IF(E29="","",IF(E29<-2,0,IF(E29>1,0,VLOOKUP(E29,'8'!$A$2:$B$1503,2,TRUE)))) -> 1
A30: 20 | B30: 4 | C30: 0.65 | D30: 0.8822309505 | E30: -0.2322309505 | F30: =IF(E30="","",IF(E30<-2,0,IF(E30>1,0,VLOOKUP(E30,'8'!$A$2:$B$1503,2,TRUE)))) -> 1
A31: 20 | B31: 4 | C31: 0.72 | D31: 0.8822309505 | E31: -0.1622309505 | F31: =IF(E31="","",IF(E31<-2,0,IF(E31>1,0,VLOOKUP(E31,'8'!$A$2:$B$1503,2,TRUE)))) -> 1
A32: 20 | B32: 4 | C32: 0.72 | D32: 0.8822309505 | E32: -0.1622309505 | F32: =IF(E32="","",IF(E32<-2,0,IF(E32>1,0,VLOOKUP(E32,'8'!$A$2:$B$1503,2,TRUE)))) -> 1
A33: 20 | B33: 4 | C33: 1.14 | D33: 0.8822309505 | E33: 0.2577690495 | F33: =IF(E33="","",IF(E33<-2,0,IF(E33>1,0,VLOOKUP(E33,'8'!$A$2:$B$1503,2,TRUE)))) -> 1
A34: 20 | B34: 6 | C34: 0.72 | D34: 1.048666492 | E34: -0.3286664918 | F34: =IF(E34="","",IF(E34<-2,0,IF(E34>1,0,VLOOKUP(E34,'8'!$A$2:$B$1503,2,TRUE)))) -> 1
A35: 20 | B35: 6 | C35: 1.01 | D35: 1.048666492 | E35: -0.03866649184 | F35: =IF(E35="","",IF(E35<-2,0,IF(E35>1,0,VLOOKUP(E35,'8'!$A$2:$B$1503,2,TRUE)))) -> 1
A36: 20 | B36: 6 | C36: 1.01 | D36: 1.048666492 | E36: -0.03866649184 | F36: =IF(E36="","",IF(E36<-2,0,IF(E36>1,0,VLOOKUP(E36,'8'!$A$2:$B$1503,2,TRUE)))) -> 1
A37: 20 | B37: 6 | C37: 1.44 | D37: 1.048666492 | E37: 0.3913335082 | F37: =IF(E37="","",IF(E37<-2,0,IF(E37>1,0,VLOOKUP(E37,'8'!$A$2:$B$1503,2,TRUE)))) -> 1
A38: 20 | B38: 8 | C38: 1.01 | D38: 1.479614784 | E38: -0.4696147838 | F38: =IF(E38="","",IF(E38<-2,0,IF(E38>1,0,VLOOKUP(E38,'8'!$A$2:$B$1503,2,TRUE)))) -> 1
A39: 20 | B39: 8 | C39: 1.01 | D39: 1.479614784 | E39: -0.4696147838 | F39: =IF(E39="","",IF(E39<-2,0,IF(E39>1,0,VLOOKUP(E39,'8'!$A$2:$B$1503,2,TRUE)))) -> 1
A40: 20 | B40: 8 | C40: 1.62 | D40: 1.479614784 | E40: 0.1403852162 | F40: =IF(E40="","",IF(E40<-2,0,IF(E40>1,0,VLOOKUP(E40,'8'!$A$2:$B$1503,2,TRUE)))) -> 1
A41: 20 | B41: 8 | C41: 1.62 | D41: 1.479614784 | E41: 0.1403852162 | F41: =IF(E41="","",IF(E41<-2,0,IF(E41>1,0,VLOOKUP(E41,'8'!$A$2:$B$1503,2,TRUE)))) -> 1
A42: 24 | B42: 0 | C42: 0.72 | D42: 0.8396938342 | E42: -0.1196938342 | F42: =IF(E42="","",IF(E42<-2,0,IF(E42>1,0,VLOOKUP(E42,'8'!$A$2:$B$1503,2,TRUE)))) -> 1
A43: 24 | B43: 0 | C43: 1.01 | D43: 0.8396938342 | E43: 0.1703061658 | F43: =IF(E43="","",IF(E43<-2,0,IF(E43>1,0,VLOOKUP(E43,'8'!$A$2:$B$1503,2,TRUE)))) -> 1
A44: 24 | B44: 0 | C44: 1.01 | D44: 0.8396938342 | E44: 0.1703061658 | F44: =IF(E44="","",IF(E44<-2,0,IF(E44>1,0,VLOOKUP(E44,'8'!$A$2:$B$1503,2,TRUE)))) -> 1
A45: 24 | B45: 0 | C45: 1.01 | D45: 0.8396938342 | E45: 0.1703061658 | F45: =IF(E45="","",IF(E45<-2,0,IF(E45>1,0,VLOOKUP(E45,'8'!$A$2:$B$1503,2,TRUE)))) -> 1
A46: 24 | B46: 2 | C46: 0.72 | D46: 0.8557211818 | E46: -0.1357211818 | F46: =IF(E46="","",IF(E46<-2,0,IF(E46>1,0,VLOOKUP(E46,'8'!$A$2:$B$1503,2,TRUE)))) -> 1
A47: 24 | B47: 2 | C47: 0.72 | D47: 0.8557211818 | E47: -0.1357211818 | F47: =IF(E47="","",IF(E47<-2,0,IF(E47>1,0,VLOOKUP(E47,'8'!$A$2:$B$1503,2,TRUE)))) -> 1
A48: 24 | B48: 2 | C48: 0.72 | D48: 0.8557211818 | E48: -0.1357211818 | F48: =IF(E48="","",IF(E48<-2,0,IF(E48>1,0,VLOOKUP(E48,'8'!$A$2:$B$1503,2,TRUE)))) -> 1
A49: 24 | B49: 2 | C49: 0.9 | D49: 0.8557211818 | E49: 0.04427881817 | F49: =IF(E49="","",IF(E49<-2,0,IF(E49>1,0,VLOOKUP(E49,'8'!$A$2:$B$1503,2,TRUE)))) -> 1
A50: 24 | B50: 4 | C50: 0.52 | D50: 0.9969574199 | E50: -0.4769574199 | F50: =IF(E50="","",IF(E50<-2,0,IF(E50>1,0,VLOOKUP(E50,'8'!$A$2:$B$1503,2,TRUE)))) -> 1
A51: 24 | B51: 4 | C51: 0.72 | D51: 0.9969574199 | E51: -0.2769574199 | F51: =IF(E51="","",IF(E51<-2,0,IF(E51>1,0,VLOOKUP(E51,'8'!$A$2:$B$1503,2,TRUE)))) -> 1
A52: 24 | B52: 4 | C52: 1.16 | D52: 0.9969574199 | E52: 0.1630425801 | F52: =IF(E52="","",IF(E52<-2,0,IF(E52>1,0,VLOOKUP(E52,'8'!$A$2:$B$1503,2,TRUE)))) -> 1
A53: 24 | B53: 4 | C53: 1.44 | D53: 0.9969574199 | E53: 0.4430425801 | F53: =IF(E53="","",IF(E53<-2,0,IF(E53>1,0,VLOOKUP(E53,'8'!$A$2:$B$1503,2,TRUE)))) -> 1
A54: 24 | B54: 6 | C54: 1.7 | D54: 1.731430381 | E54: -0.03143038127 | F54: =IF(E54="","",IF(E54<-2,0,IF(E54>1,0,VLOOKUP(E54,'8'!$A$2:$B$1503,2,TRUE)))) -> 1
A55: 24 | B55: 6 | C55: 1.9 | D55: 1.731430381 | E55: 0.1685696187 | F55: =IF(E55="","",IF(E55<-2,0,IF(E55>1,0,VLOOKUP(E55,'8'!$A$2:$B$1503,2,TRUE)))) -> 1
A56: 24 | B56: 6 | C56: 1.96 | D56: 1.731430381 | E56: 0.2285696187 | F56: =IF(E56="","",IF(E56<-2,0,IF(E56>1,0,VLOOKUP(E56,'8'!$A$2:$B$1503,2,TRUE)))) -> 1
A57: 24 | B57: 6 | C57: 2.18 | D57: 1.731430381 | E57: 0.4485696187 | F57: =IF(E57="","",IF(E57<-2,0,IF(E57>1,0,VLOOKUP(E57,'8'!$A$2:$B$1503,2,TRUE)))) -> 1
A58: 24 | B58: 8 | C58: 1.9 | D58: 2.220336047 | E58: -0.3203360465 | F58: =IF(E58="","",IF(E58<-2,0,IF(E58>1,0,VLOOKUP(E58,'8'!$A$2:$B$1503,2,TRUE)))) -> 1
A59: 24 | B59: 8 | C59: 2.12 | D59: 2.220336047 | E59: -0.1003360465 | F59: =IF(E59="","",IF(E59<-2,0,IF(E59>1,0,VLOOKUP(E59,'8'!$A$2:$B$1503,2,TRUE)))) -> 1
A60: 24 | B60: 8 | C60: 2.32 | D60: 2.220336047 | E60: 0.0996639535 | F60: =IF(E60="","",IF(E60<-2,0,IF(E60>1,0,VLOOKUP(E60,'8'!$A$2:$B$1503,2,TRUE)))) -> 1
A61: 24 | B61: 8 | C61: 2.62 | D61: 2.220336047 | E61: 0.3996639535 | F61: =IF(E61="","",IF(E61<-2,0,IF(E61>1,0,VLOOKUP(E61,'8'!$A$2:$B$1503,2,TRUE)))) -> 1
A62: 28 | B62: 0 | C62: 0.72 | D62: 0.8436260321 | E62: -0.1236260321 | F62: =IF(E62="","",IF(E62<-2,0,IF(E62>1,0,VLOOKUP(E62,'8'!$A$2:$B$1503,2,TRUE)))) -> 1
A63: 28 | B63: 0 | C63: 0.72 | D63: 0.8436260321 | E63: -0.1236260321 | F63: =IF(E63="","",IF(E63<-2,0,IF(E63>1,0,VLOOKUP(E63,'8'!$A$2:$B$1503,2,TRUE)))) -> 1
A64: 28 | B64: 0 | C64: 0.74 | D64: 0.8436260321 | E64: -0.1036260321 | F64: =IF(E64="","",IF(E64<-2,0,IF(E64>1,0,VLOOKUP(E64,'8'!$A$2:$B$1503,2,TRUE)))) -> 1
A65: 28 | B65: 0 | C65: 0.9 | D65: 0.8436260321 | E65: 0.05637396785 | F65: =IF(E65="","",IF(E65<-2,0,IF(E65>1,0,VLOOKUP(E65,'8'!$A$2:$B$1503,2,TRUE)))) -> 1
A66: 28 | B66: 2 | C66: 0.72 | D66: 0.8917577782 | E66: -0.1717577782 | F66: =IF(E66="","",IF(E66<-2,0,IF(E66>1,0,VLOOKUP(E66,'8'!$A$2:$B$1503,2,TRUE)))) -> 1
A67: 28 | B67: 2 | C67: 0.72 | D67: 0.8917577782 | E67: =IF(C67="","",IF(C67*D67<0,-2.5,C67-D67)) -> -0.1717577782 | F67: =IF(E67="","",IF(E67<-2,0,IF(E67>1,0,VLOOKUP(E67,'8'!$A$2:$B$1503,2,TRUE)))) -> 1
A68: 28 | B68: 2 | C68: 0.9 | D68: 0.8917577782 | E68: 0.008242221839 | F68: =IF(E68="","",IF(E68<-2,0,IF(E68>1,0,VLOOKUP(E68,'8'!$A$2:$B$1503,2,TRUE)))) -> 1
A69: 28 | B69: 2 | C69: 1.54 | D69: 0.8917577782 | E69: 0.6482422218 | F69: =IF(E69="","",IF(E69<-2,0,IF(E69>1,0,VLOOKUP(E69,'8'!$A$2:$B$1503,2,TRUE)))) -> 0.704
A70: 28 | B70: 4 | C70: 1.01 | D70: 1.642168736 | E70: -0.6321687362 | F70: =IF(E70="","",IF(E70<-2,0,IF(E70>1,0,VLOOKUP(E70,'8'!$A$2:$B$1503,2,TRUE)))) -> 1
A71: 28 | B71: 4 | C71: 1.77 | D71: 1.642168736 | E71: 0.1278312638 | F71: =IF(E71="","",IF(E71<-2,0,IF(E71>1,0,VLOOKUP(E71,'8'!$A$2:$B$1503,2,TRUE)))) -> 1
A72: 28 | B72: 4 | C72: 1.88 | D72: 1.642168736 | E72: 0.2378312638 | F72: =IF(E72="","",IF(E72<-2,0,IF(E72>1,0,VLOOKUP(E72,'8'!$A$2:$B$1503,2,TRUE)))) -> 1
A73: 28 | B73: 4 | C73: 2.18 | D73: 1.642168736 | E73: 0.5378312638 | F73: =IF(E73="","",IF(E73<-2,0,IF(E73>1,0,VLOOKUP(E73,'8'!$A$2:$B$1503,2,TRUE)))) -> 0.926
A74: 28 | B74: 6 | C74: 1.96 | D74: 2.483177389 | E74: -0.5231773887 | F74: =IF(E74="","",IF(E74<-2,0,IF(E74>1,0,VLOOKUP(E74,'8'!$A$2:$B$1503,2,TRUE)))) -> 1
A75: 28 | B75: 6 | C75: 2.14 | D75: 2.483177389 | E75: -0.3431773887 | F75: =IF(E75="","",IF(E75<-2,0,IF(E75>1,0,VLOOKUP(E75,'8'!$A$2:$B$1503,2,TRUE)))) -> 1
A76: 28 | B76: 6 | C76: 2.32 | D76: 2.483177389 | E76: -0.1631773887 | F76: =IF(E76="","",IF(E76<-2,0,IF(E76>1,0,VLOOKUP(E76,'8'!$A$2:$B$1503,2,TRUE)))) -> 1
A77: 28 | B77: 6 | C77: 2.84 | D77: 2.483177389 | E77: 0.3568226113 | F77: =IF(E77="","",IF(E77<-2,0,IF(E77>1,0,VLOOKUP(E77,'8'!$A$2:$B$1503,2,TRUE)))) -> 1
A78: 28 | B78: 8 | C78: 2.9 | D78: 3.404454659 | E78: -0.5044546586 | F78: =IF(E78="","",IF(E78<-2,0,IF(E78>1,0,VLOOKUP(E78,'8'!$A$2:$B$1503,2,TRUE)))) -> 1
A79: 28 | B79: 8 | C79: 3.49 | D79: 3.404454659 | E79: 0.08554534137 | F79: =IF(E79="","",IF(E79<-2,0,IF(E79>1,0,VLOOKUP(E79,'8'!$A$2:$B$1503,2,TRUE)))) -> 1
A80: 28 | B80: 8 | C80: 3.56 | D80: 3.404454659 | E80: 0.1555453414 | F80: =IF(E80="","",IF(E80<-2,0,IF(E80>1,0,VLOOKUP(E80,'8'!$A$2:$B$1503,2,TRUE)))) -> 1
A81: 28 | B81: 8 | C81: 3.97 | D81: 3.404454659 | E81: 0.5655453414 | F81: =IF(E81="","",IF(E81<-2,0,IF(E81>1,0,VLOOKUP(E81,'8'!$A$2:$B$1503,2,TRUE)))) -> 0.87
A82: 32 | B82: 0 | C82: 0.72 | D82: 0.8560722854 | E82: -0.1360722854 | F82: =IF(E82="","",IF(E82<-2,0,IF(E82>1,0,VLOOKUP(E82,'8'!$A$2:$B$1503,2,TRUE)))) -> 1
A83: 32 | B83: 0 | C83: 1.01 | D83: 0.8560722854 | E83: 0.1539277146 | F83: =IF(E83="","",IF(E83<-2,0,IF(E83>1,0,VLOOKUP(E83,'8'!$A$2:$B$1503,2,TRUE)))) -> 1
A84: 32 | B84: 0 | C84: 1.01 | D84: 0.8560722854 | E84: 0.1539277146 | F84: =IF(E84="","",IF(E84<-2,0,IF(E84>1,0,VLOOKUP(E84,'8'!$A$2:$B$1503,2,TRUE)))) -> 1
A85: 32 | B85: 0 | C85: 1.01 | D85: 0.8560722854 | E85: 0.1539277146 | F85: =IF(E85="","",IF(E85<-2,0,IF(E85>1,0,VLOOKUP(E85,'8'!$A$2:$B$1503,2,TRUE)))) -> 1
A86: 32 | B86: 2 | C86: 0.72 | D86: 1.038461346 | E86: -0.3184613457 | F86: =IF(E86="","",IF(E86<-2,0,IF(E86>1,0,VLOOKUP(E86,'8'!$A$2:$B$1503,2,TRUE)))) -> 1
A87: 32 | B87: 2 | C87: 0.9 | D87: 1.038461346 | E87: -0.1384613457 | F87: =IF(E87="","",IF(E87<-2,0,IF(E87>1,0,VLOOKUP(E87,'8'!$A$2:$B$1503,2,TRUE)))) -> 1
A88: 32 | B88: 2 | C88: 1.01 | D88: 1.038461346 | E88: -0.02846134573 | F88: =IF(E88="","",IF(E88<-2,0,IF(E88>1,0,VLOOKUP(E88,'8'!$A$2:$B$1503,2,TRUE)))) -> 1
A89: 32 | B89: 2 | C89: 1.16 | D89: 1.038461346 | E89: 0.1215386543 | F89: =IF(E89="","",IF(E89<-2,0,IF(E89>1,0,VLOOKUP(E89,'8'!$A$2:$B$1503,2,TRUE)))) -> 1
A90: 32 | B90: 4 | C90: 1.82 | D90: 2.24323329 | E90: -0.42323329 | F90: =IF(E90="","",IF(E90<-2,0,IF(E90>1,0,VLOOKUP(E90,'8'!$A$2:$B$1503,2,TRUE)))) -> 1
A91: 32 | B91: 4 | C91: 1.82 | D91: 2.24323329 | E91: -0.42323329 | F91: =IF(E91="","",IF(E91<-2,0,IF(E91>1,0,VLOOKUP(E91,'8'!$A$2:$B$1503,2,TRUE)))) -> 1
A92: 32 | B92: 4 | C92: 1.82 | D92: 2.24323329 | E92: -0.42323329 | F92: =IF(E92="","",IF(E92<-2,0,IF(E92>1,0,VLOOKUP(E92,'8'!$A$2:$B$1503,2,TRUE)))) -> 1
A93: 32 | B93: 4 | C93: 2.38 | D93: 2.24323329 | E93: 0.13676671 | F93: =IF(E93="","",IF(E93<-2,0,IF(E93>1,0,VLOOKUP(E93,'8'!$A$2:$B$1503,2,TRUE)))) -> 1
A94: 32 | B94: 6 | C94: 2.78 | D94: 3.507298591 | E94: -0.7272985909 | F94: =IF(E94="","",IF(E94<-2,0,IF(E94>1,0,VLOOKUP(E94,'8'!$A$2:$B$1503,2,TRUE)))) -> 1
A95: 32 | B95: 6 | C95: 3.57 | D95: 3.507298591 | E95: 0.06270140912 | F95: =IF(E95="","",IF(E95<-2,0,IF(E95>1,0,VLOOKUP(E95,'8'!$A$2:$B$1503,2,TRUE)))) -> 1
A96: 32 | B96: 6 | C96: 4.16 | D96: 3.507298591 | E96: 0.6527014091 | F96: =IF(E96="","",IF(E96<-2,0,IF(E96>1,0,VLOOKUP(E96,'8'!$A$2:$B$1503,2,TRUE)))) -> 0.696
A97: 32 | B97: 6 | C97: 4.16 | D97: 3.507298591 | E97: 0.6527014091 | F97: =IF(E97="","",IF(E97<-2,0,IF(E97>1,0,VLOOKUP(E97,'8'!$A$2:$B$1503,2,TRUE)))) -> 0.696
A98: 32 | B98: 8 | C98: 4.62 | D98: 4.938487273 | E98: -0.3184872729 | F98: =IF(E98="","",IF(E98<-2,0,IF(E98>1,0,VLOOKUP(E98,'8'!$A$2:$B$1503,2,TRUE)))) -> 1
A99: 32 | B99: 8 | C99: 4.77 | D99: 4.938487273 | E99: -0.1684872729 | F99: =IF(E99="","",IF(E99<-2,0,IF(E99>1,0,VLOOKUP(E99,'8'!$A$2:$B$1503,2,TRUE)))) -> 1
A100: 32 | B100: 8 | C100: 4.82 | D100: 4.938487273 | E100: -0.1184872729 | F100: =IF(E100="","",IF(E100<-2,0,IF(E100>1,0,VLOOKUP(E100,'8'!$A$2:$B$1503,2,TRUE)))) -> 1
A101: 32 | B101: 8 | C101: 5.32 | D101: 4.938487273 | E101: 0.3815127271 | F101: =IF(E101="","",IF(E101<-2,0,IF(E101>1,0,VLOOKUP(E101,'8'!$A$2:$B$1503,2,TRUE)))) -> 1
A102: 36 | B102: 0 | C102: 0.34 | D102: 0.8790392804 | E102: -0.5390392804 | F102: =IF(E102="","",IF(E102<-2,0,IF(E102>1,0,VLOOKUP(E102,'8'!$A$2:$B$1503,2,TRUE)))) -> 1
A103: 36 | B103: 0 | C103: 0.72 | D103: 0.8790392804 | E103: -0.1590392804 | F103: =IF(E103="","",IF(E103<-2,0,IF(E103>1,0,VLOOKUP(E103,'8'!$A$2:$B$1503,2,TRUE)))) -> 1
A104: 36 | B104: 0 | C104: 1.01 | D104: 0.8790392804 | E104: 0.1309607196 | F104: =IF(E104="","",IF(E104<-2,0,IF(E104>1,0,VLOOKUP(E104,'8'!$A$2:$B$1503,2,TRUE)))) -> 1
A105: 36 | B105: 0 | C105: 1.44 | D105: 0.8790392804 | E105: 0.5609607196 | F105: =IF(E105="","",IF(E105<-2,0,IF(E105>1,0,VLOOKUP(E105,'8'!$A$2:$B$1503,2,TRUE)))) -> 0.88
A106: 36 | B106: 2 | C106: 0.72 | D106: 1.312592898 | E106: -0.5925928982 | F106: =IF(E106="","",IF(E106<-2,0,IF(E106>1,0,VLOOKUP(E106,'8'!$A$2:$B$1503,2,TRUE)))) -> 1
A107: 36 | B107: 2 | C107: 1.27 | D107: 1.312592898 | E107: -0.04259289815 | F107: =IF(E107="","",IF(E107<-2,0,IF(E107>1,0,VLOOKUP(E107,'8'!$A$2:$B$1503,2,TRUE)))) -> 1
A108: 36 | B108: 2 | C108: 1.62 | D108: 1.312592898 | E108: 0.3074071018 | F108: =IF(E108="","",IF(E108<-2,0,IF(E108>1,0,VLOOKUP(E108,'8'!$A$2:$B$1503,2,TRUE)))) -> 1
A109: 36 | B109: 2 | C109: 1.82 | D109: 1.312592898 | E109: 0.5074071018 | F109: =IF(E109="","",IF(E109<-2,0,IF(E109>1,0,VLOOKUP(E109,'8'!$A$2:$B$1503,2,TRUE)))) -> 0.986
A110: 36 | B110: 4 | C110: 2.44 | D110: 2.631244805 | E110: -0.1912448047 | F110: =IF(E110="","",IF(E110<-2,0,IF(E110>1,0,VLOOKUP(E110,'8'!$A$2:$B$1503,2,TRUE)))) -> 1
A111: 36 | B111: 4 | C111: 2.62 | D111: 2.631244805 | E111: -0.01124480471 | F111: =IF(E111="","",IF(E111<-2,0,IF(E111>1,0,VLOOKUP(E111,'8'!$A$2:$B$1503,2,TRUE)))) -> 1
A112: 36 | B112: 4 | C112: 2.82 | D112: 2.631244805 | E112: 0.1887551953 | F112: =IF(E112="","",IF(E112<-2,0,IF(E112>1,0,VLOOKUP(E112,'8'!$A$2:$B$1503,2,TRUE)))) -> 1
A113: 36 | B113: 4 | C113: 2.9 | D113: 2.631244805 | E113: 0.2687551953 | F113: =IF(E113="","",IF(E113<-2,0,IF(E113>1,0,VLOOKUP(E113,'8'!$A$2:$B$1503,2,TRUE)))) -> 1
A114: 36 | B114: 6 | C114: 3.62 | D114: 4.31381496 | E114: -0.6938149603 | F114: =IF(E114="","",IF(E114<-2,0,IF(E114>1,0,VLOOKUP(E114,'8'!$A$2:$B$1503,2,TRUE)))) -> 1
A115: 36 | B115: 6 | C115: 4.32 | D115: 4.31381496 | E115: 0.006185039739 | F115: =IF(E115="","",IF(E115<-2,0,IF(E115>1,0,VLOOKUP(E115,'8'!$A$2:$B$1503,2,TRUE)))) -> 1
A116: 36 | B116: 6 | C116: 4.38 | D116: 4.31381496 | E116: 0.06618503974 | F116: =IF(E116="","",IF(E116<-2,0,IF(E116>1,0,VLOOKUP(E116,'8'!$A$2:$B$1503,2,TRUE)))) -> 1
A117: 36 | B117: 6 | C117: 5.16 | D117: 4.31381496 | E117: 0.8461850397 | F117: =IF(E117="","",IF(E117<-2,0,IF(E117>1,0,VLOOKUP(E117,'8'!$A$2:$B$1503,2,TRUE)))) -> 0.308
A118: 36 | B118: 8 | C118: 5.32 | D118: 5.966833245 | E118: -0.6468332452 | F118: =IF(E118="","",IF(E118<-2,0,IF(E118>1,0,VLOOKUP(E118,'8'!$A$2:$B$1503,2,TRUE)))) -> 1
A119: 36 | B119: 8 | C119: 5.88 | D119: 5.966833245 | E119: -0.08683324517 | F119: =IF(E119="","",IF(E119<-2,0,IF(E119>1,0,VLOOKUP(E119,'8'!$A$2:$B$1503,2,TRUE)))) -> 1
A120: 36 | B120: 8 | C120: 6.16 | D120: 5.966833245 | E120: 0.1931667548 | F120: =IF(E120="","",IF(E120<-2,0,IF(E120>1,0,VLOOKUP(E120,'8'!$A$2:$B$1503,2,TRUE)))) -> 1
A121: 36 | B121: 8 | C121: 6.16 | D121: 5.966833245 | E121: 0.1931667548 | F121: =IF(E121="","",IF(E121<-2,0,IF(E121>1,0,VLOOKUP(E121,'8'!$A$2:$B$1503,2,TRUE)))) -> 1
A122: 40 | B122: 0 | C122: 0.65 | D122: 0.8981987015 | E122: -0.2481987015 | F122: =IF(E122="","",IF(E122<-2,0,IF(E122>1,0,VLOOKUP(E122,'8'!$A$2:$B$1503,2,TRUE)))) -> 1
A123: 40 | B123: 0 | C123: 0.72 | D123: 0.8981987015 | E123: -0.1781987015 | F123: =IF(E123="","",IF(E123<-2,0,IF(E123>1,0,VLOOKUP(E123,'8'!$A$2:$B$1503,2,TRUE)))) -> 1
A124: 40 | B124: 0 | C124: 0.72 | D124: 0.8981987015 | E124: -0.1781987015 | F124: =IF(E124="","",IF(E124<-2,0,IF(E124>1,0,VLOOKUP(E124,'8'!$A$2:$B$1503,2,TRUE)))) -> 1
A125: 40 | B125: 0 | C125: 0.9 | D125: 0.8981987015 | E125: 0.001801298513 | F125: =IF(E125="","",IF(E125<-2,0,IF(E125>1,0,VLOOKUP(E125,'8'!$A$2:$B$1503,2,TRUE)))) -> 1
A126: 40 | B126: 2 | C126: 0.18 | D126: 1.425026548 | E126: -1.245026548 | F126: =IF(E126="","",IF(E126<-2,0,IF(E126>1,0,VLOOKUP(E126,'8'!$A$2:$B$1503,2,TRUE)))) -> 0.754
A127: 40 | B127: 2 | C127: 1.44 | D127: 1.425026548 | E127: 0.01497345167 | F127: =IF(E127="","",IF(E127<-2,0,IF(E127>1,0,VLOOKUP(E127,'8'!$A$2:$B$1503,2,TRUE)))) -> 1
A128: 40 | B128: 2 | C128: 1.62 | D128: 1.425026548 | E128: 0.1949734517 | F128: =IF(E128="","",IF(E128<-2,0,IF(E128>1,0,VLOOKUP(E128,'8'!$A$2:$B$1503,2,TRUE)))) -> 1
A129: 40 | B129: 2 | C129: 2.32 | D129: 1.425026548 | E129: 0.8949734517 | F129: =IF(E129="","",IF(E129<-2,0,IF(E129>1,0,VLOOKUP(E129,'8'!$A$2:$B$1503,2,TRUE)))) -> 0.212
A130: 40 | B130: 4 | C130: 2.62 | D130: 2.755017455 | E130: -0.1350174549 | F130: =IF(E130="","",IF(E130<-2,0,IF(E130>1,0,VLOOKUP(E130,'8'!$A$2:$B$1503,2,TRUE)))) -> 1
A131: 40 | B131: 4 | C131: 2.82 | D131: 2.755017455 | E131: =IF(C131="","",IF(C131*D131<0,-2.5,C131-D131)) -> 0.06498254512 | F131: =IF(E131="","",IF(E131<-2,0,IF(E131>1,0,VLOOKUP(E131,'8'!$A$2:$B$1503,2,TRUE)))) -> 1
A132: 40 | B132: 4 | C132: 2.9 | D132: 2.755017455 | E132: 0.1449825451 | F132: =IF(E132="","",IF(E132<-2,0,IF(E132>1,0,VLOOKUP(E132,'8'!$A$2:$B$1503,2,TRUE)))) -> 1
A133: 40 | B133: 4 | C133: 3.38 | D133: 2.755017455 | E133: 0.6249825451 | F133: =IF(E133="","",IF(E133<-2,0,IF(E133>1,0,VLOOKUP(E133,'8'!$A$2:$B$1503,2,TRUE)))) -> 0.752
A134: 40 | B134: 6 | C134: 4.32 | D134: 4.604053325 | E134: -0.2840533246 | F134: =IF(E134="","",IF(E134<-2,0,IF(E134>1,0,VLOOKUP(E134,'8'!$A$2:$B$1503,2,TRUE)))) -> 1
A135: 40 | B135: 6 | C135: 4.32 | D135: 4.604053325 | E135: -0.2840533246 | F135: =IF(E135="","",IF(E135<-2,0,IF(E135>1,0,VLOOKUP(E135,'8'!$A$2:$B$1503,2,TRUE)))) -> 1
A136: 40 | B136: 6 | C136: 4.44 | D136: 4.604053325 | E136: -0.1640533246 | F136: =IF(E136="","",IF(E136<-2,0,IF(E136>1,0,VLOOKUP(E136,'8'!$A$2:$B$1503,2,TRUE)))) -> 1
A137: 40 | B137: 6 | C137: 4.56 | D137: 4.604053325 | E137: -0.04405332461 | F137: =IF(E137="","",IF(E137<-2,0,IF(E137>1,0,VLOOKUP(E137,'8'!$A$2:$B$1503,2,TRUE)))) -> 1
A138: 40 | B138: 8 | C138: 6.18 | D138: 6.373529326 | E138: -0.1935293265 | F138: =IF(E138="","",IF(E138<-2,0,IF(E138>1,0,VLOOKUP(E138,'8'!$A$2:$B$1503,2,TRUE)))) -> 1
A139: 40 | B139: 8 | C139: 6.32 | D139: 6.373529326 | E139: -0.05352932649 | F139: =IF(E139="","",IF(E139<-2,0,IF(E139>1,0,VLOOKUP(E139,'8'!$A$2:$B$1503,2,TRUE)))) -> 1
A140: 40 | B140: 8 | C140: 6.32 | D140: 6.373529326 | E140: -0.05352932649 | F140: =IF(E140="","",IF(E140<-2,0,IF(E140>1,0,VLOOKUP(E140,'8'!$A$2:$B$1503,2,TRUE)))) -> 1
A141: 40 | B141: 8 | C141: 7.16 | D141: 6.373529326 | E141: 0.7864706735 | F141: =IF(E141="","",IF(E141<-2,0,IF(E141>1,0,VLOOKUP(E141,'8'!$A$2:$B$1503,2,TRUE)))) -> 0.428
F142: =IF(E142="","",IF(E142<-2,0,IF(E142>1,0,VLOOKUP(E142,'8'!$A$2:$B$1503,2,TRUE)))) -> 
F143: =IF(E143="","",IF(E143<-2,0,IF(E143>1,0,VLOOKUP(E143,'8'!$A$2:$B$1503,2,TRUE)))) -> 
F144: =IF(E144="","",IF(E144<-2,0,IF(E144>1,0,VLOOKUP(E144,'8'!$A$2:$B$1503,2,TRUE)))) -> 
F145: =IF(E145="","",IF(E145<-2,0,IF(E145>1,0,VLOOKUP(E145,'8'!$A$2:$B$1503,2,TRUE)))) -> 
F146: =IF(E146="","",IF(E146<-2,0,IF(E146>1,0,VLOOKUP(E146,'8'!$A$2:$B$1503,2,TRUE)))) -> 
F147: =IF(E147="","",IF(E147<-2,0,IF(E147>1,0,VLOOKUP(E147,'8'!$A$2:$B$1503,2,TRUE)))) -> 
F148: =IF(E148="","",IF(E148<-2,0,IF(E148>1,0,VLOOKUP(E148,'8'!$A$2:$B$1503,2,TRUE)))) -> 
F149: =IF(E149="","",IF(E149<-2,0,IF(E149>1,0,VLOOKUP(E149,'8'!$A$2:$B$1503,2,TRUE)))) -> 
F150: =IF(E150="","",IF(E150<-2,0,IF(E150>1,0,VLOOKUP(E150,'8'!$A$2:$B$1503,2,TRUE)))) -> 
F151: =IF(E151="","",IF(E151<-2,0,IF(E151>1,0,VLOOKUP(E151,'8'!$A$2:$B$1503,2,TRUE)))) -> 
F152: =IF(E152="","",IF(E152<-2,0,IF(E152>1,0,VLOOKUP(E152,'8'!$A$2:$B$1503,2,TRUE)))) -> 
F153: =IF(E153="","",IF(E153<-2,0,IF(E153>1,0,VLOOKUP(E153,'8'!$A$2:$B$1503,2,TRUE)))) -> 
F154: =IF(E154="","",IF(E154<-2,0,IF(E154>1,0,VLOOKUP(E154,'8'!$A$2:$B$1503,2,TRUE)))) -> 
F155: =IF(E155="","",IF(E155<-2,0,IF(E155>1,0,VLOOKUP(E155,'8'!$A$2:$B$1503,2,TRUE)))) -> 
F156: =IF(E156="","",IF(E156<-2,0,IF(E156>1,0,VLOOKUP(E156,'8'!$A$2:$B$1503,2,TRUE)))) -> 
F157: =IF(E157="","",IF(E157<-2,0,IF(E157>1,0,VLOOKUP(E157,'8'!$A$2:$B$1503,2,TRUE)))) -> 
F158: =IF(E158="","",IF(E158<-2,0,IF(E158>1,0,VLOOKUP(E158,'8'!$A$2:$B$1503,2,TRUE)))) -> 
F159: =IF(E159="","",IF(E159<-2,0,IF(E159>1,0,VLOOKUP(E159,'8'!$A$2:$B$1503,2,TRUE)))) -> 
F160: =IF(E160="","",IF(E160<-2,0,IF(E160>1,0,VLOOKUP(E160,'8'!$A$2:$B$1503,2,TRUE)))) -> 
F161: =IF(E161="","",IF(E161<-2,0,IF(E161>1,0,VLOOKUP(E161,'8'!$A$2:$B$1503,2,TRUE)))) -> 
F162: =IF(E162="","",IF(E162<-2,0,IF(E162>1,0,VLOOKUP(E162,'8'!$A$2:$B$1503,2,TRUE)))) -> 
F163: =IF(E163="","",IF(E163<-2,0,IF(E163>1,0,VLOOKUP(E163,'8'!$A$2:$B$1503,2,TRUE)))) -> 
F164: =IF(E164="","",IF(E164<-2,0,IF(E164>1,0,VLOOKUP(E164,'8'!$A$2:$B$1503,2,TRUE)))) -> 
F165: =IF(E165="","",IF(E165<-2,0,IF(E165>1,0,VLOOKUP(E165,'8'!$A$2:$B$1503,2,TRUE)))) -> 
F166: =IF(E166="","",IF(E166<-2,0,IF(E166>1,0,VLOOKUP(E166,'8'!$A$2:$B$1503,2,TRUE)))) -> 
F167: =IF(E167="","",IF(E167<-2,0,IF(E167>1,0,VLOOKUP(E167,'8'!$A$2:$B$1503,2,TRUE)))) -> 
F168: =IF(E168="","",IF(E168<-2,0,IF(E168>1,0,VLOOKUP(E168,'8'!$A$2:$B$1503,2,TRUE)))) -> 
F169: =IF(E169="","",IF(E169<-2,0,IF(E169>1,0,VLOOKUP(E169,'8'!$A$2:$B$1503,2,TRUE)))) -> 
F170: =IF(E170="","",IF(E170<-2,0,IF(E170>1,0,VLOOKUP(E170,'8'!$A$2:$B$1503,2,TRUE)))) -> 
F171: =IF(E171="","",IF(E171<-2,0,IF(E171>1,0,VLOOKUP(E171,'8'!$A$2:$B$1503,2,TRUE)))) -> 
F172: =IF(E172="","",IF(E172<-2,0,IF(E172>1,0,VLOOKUP(E172,'8'!$A$2:$B$1503,2,TRUE)))) -> 
F173: =IF(E173="","",IF(E173<-2,0,IF(E173>1,0,VLOOKUP(E173,'8'!$A$2:$B$1503,2,TRUE)))) -> 
F174: =IF(E174="","",IF(E174<-2,0,IF(E174>1,0,VLOOKUP(E174,'8'!$A$2:$B$1503,2,TRUE)))) -> 
F175: =IF(E175="","",IF(E175<-2,0,IF(E175>1,0,VLOOKUP(E175,'8'!$A$2:$B$1503,2,TRUE)))) -> 
F176: =IF(E176="","",IF(E176<-2,0,IF(E176>1,0,VLOOKUP(E176,'8'!$A$2:$B$1503,2,TRUE)))) -> 
F177: =IF(E177="","",IF(E177<-2,0,IF(E177>1,0,VLOOKUP(E177,'8'!$A$2:$B$1503,2,TRUE)))) -> 
F178: =IF(E178="","",IF(E178<-2,0,IF(E178>1,0,VLOOKUP(E178,'8'!$A$2:$B$1503,2,TRUE)))) -> 
F179: =IF(E179="","",IF(E179<-2,0,IF(E179>1,0,VLOOKUP(E179,'8'!$A$2:$B$1503,2,TRUE)))) -> 
F180: =IF(E180="","",IF(E180<-2,0,IF(E180>1,0,VLOOKUP(E180,'8'!$A$2:$B$1503,2,TRUE)))) -> 
F181: =IF(E181="","",IF(E181<-2,0,IF(E181>1,0,VLOOKUP(E181,'8'!$A$2:$B$1503,2,TRUE)))) -> 
F182: =IF(E182="","",IF(E182<-2,0,IF(E182>1,0,VLOOKUP(E182,'8'!$A$2:$B$1503,2,TRUE)))) -> 
F183: =IF(E183="","",IF(E183<-2,0,IF(E183>1,0,VLOOKUP(E183,'8'!$A$2:$B$1503,2,TRUE)))) -> 
F184: =IF(E184="","",IF(E184<-2,0,IF(E184>1,0,VLOOKUP(E184,'8'!$A$2:$B$1503,2,TRUE)))) -> 
F185: =IF(E185="","",IF(E185<-2,0,IF(E185>1,0,VLOOKUP(E185,'8'!$A$2:$B$1503,2,TRUE)))) -> 
F186: =IF(E186="","",IF(E186<-2,0,IF(E186>1,0,VLOOKUP(E186,'8'!$A$2:$B$1503,2,TRUE)))) -> 
F187: =IF(E187="","",IF(E187<-2,0,IF(E187>1,0,VLOOKUP(E187,'8'!$A$2:$B$1503,2,TRUE)))) -> 
F188: =IF(E188="","",IF(E188<-2,0,IF(E188>1,0,VLOOKUP(E188,'8'!$A$2:$B$1503,2,TRUE)))) -> 
F189: =IF(E189="","",IF(E189<-2,0,IF(E189>1,0,VLOOKUP(E189,'8'!$A$2:$B$1503,2,TRUE)))) -> 
F190: =IF(E190="","",IF(E190<-2,0,IF(E190>1,0,VLOOKUP(E190,'8'!$A$2:$B$1503,2,TRUE)))) -> 
F191: =IF(E191="","",IF(E191<-2,0,IF(E191>1,0,VLOOKUP(E191,'8'!$A$2:$B$1503,2,TRUE)))) -> 
F192: =IF(E192="","",IF(E192<-2,0,IF(E192>1,0,VLOOKUP(E192,'8'!$A$2:$B$1503,2,TRUE)))) -> 
F193: =IF(E193="","",IF(E193<-2,0,IF(E193>1,0,VLOOKUP(E193,'8'!$A$2:$B$1503,2,TRUE)))) -> 
F194: =IF(E194="","",IF(E194<-2,0,IF(E194>1,0,VLOOKUP(E194,'8'!$A$2:$B$1503,2,TRUE)))) -> 
E195: =IF(C195="","",IF(C195*D195<0,-2.5,C195-D195)) ->  | F195: =IF(E195="","",IF(E195<-2,0,IF(E195>1,0,VLOOKUP(E195,'8'!$A$2:$B$1503,2,TRUE)))) -> 
F196: =IF(E196="","",IF(E196<-2,0,IF(E196>1,0,VLOOKUP(E196,'8'!$A$2:$B$1503,2,TRUE)))) -> 
F197: =IF(E197="","",IF(E197<-2,0,IF(E197>1,0,VLOOKUP(E197,'8'!$A$2:$B$1503,2,TRUE)))) -> 
F198: =IF(E198="","",IF(E198<-2,0,IF(E198>1,0,VLOOKUP(E198,'8'!$A$2:$B$1503,2,TRUE)))) -> 
F199: =IF(E199="","",IF(E199<-2,0,IF(E199>1,0,VLOOKUP(E199,'8'!$A$2:$B$1503,2,TRUE)))) -> 
F200: =IF(E200="","",IF(E200<-2,0,IF(E200>1,0,VLOOKUP(E200,'8'!$A$2:$B$1503,2,TRUE)))) -> 
... 201 more rows

Sheet 3
A1: Q | B1: A | C1: Decision Tree for Dependent Data | R1: Q | S1: A | T1: Decision Tree for Dependent Data
A2: 1 | B2: yes | C2: Were the data used to develop the model? | R2: 1 | S2: yes | T2: Were the data used to develop the model?
A3: 2 | B3: yes | C3: Were the independent variables evenly spaced? | R3: 2 | S3: yes | T3: Were the independent variables evenly spaced?
A4: 3 | B4: yes | C4: Was there a minimum of four prediction cases per combination of independent variables? | R4: 3 | S4: yes | T4: Was there a minimum of four prediction cases per combination of independent variables?
A5: 4 | B5: yes | C5: Did all combinations of independent variables have the same number of prediction cases? | R5: 4 | S5: yes | T5: Did all combinations of independent variables have the same number of prediction cases?
A6: 5 | B6: yes | C6: Was the overall pAPZ ≥ 0.70? | R6: 5 | S6: yes | T6: Was the overall pAPZ ≥ 0.70?
A7: 6 | B7: yes | C7: Was pAPZ for all individual levels of independent variables ≥ 0.70? | R7: 6 | S7: yes | T7: Was pAPZ for all individual levels of independent variables ≥ 0.70?
A8: 7 | B8: yes | C8: Was a single pAPZ ≥ 0.70 for every three consecutive combinations of the independent variables? | R8: 7 | S8: yes | T8: Was a single pAPZ ≥ 0.70 for every three consecutive combinations of the independent variables?
A9: 8 | B9: =IF(CONCATENATE(B2,B3,B4,B5,B6,B7,B8)="yesyesyesyesyesyesyes","yes","no") -> yes | C9: Was the model validated for dependent data? | R9: 8 | S9: yes | T9: Was the model validated for dependent data?
A10: Average of APZ | B10: Time | R10: pAPZ | S10: Time
A11: Temp | B11: 0 | C11: 2 | D11: 4 | E11: 6 | F11: 8 | G11: Average | R11: Temp | S11: 0 | T11: 2 | U11: 4 | V11: 6 | W11: 8 | X11: Average
A12: 16 | B12: 1 | C12: 1 | D12: 1 | E12: 1 | F12: 1 | G12: 1 | R12: 16 | S12: 1 | T12: 1 | U12: 1 | V12: 1 | W12: 1 | X12: 1
A13: 20 | B13: 1 | C13: 1 | D13: 1 | E13: 1 | F13: 1 | G13: 1 | R13: 20 | S13: 1 | T13: 1 | U13: 1 | V13: 1 | W13: 1 | X13: 1
A14: 24 | B14: 1 | C14: 1 | D14: 1 | E14: 1 | F14: 1 | G14: 1 | R14: 24 | S14: 1 | T14: 1 | U14: 1 | V14: 1 | W14: 1 | X14: 1
A15: 28 | B15: 1 | C15: 0.926 | D15: 0.9815 | E15: 1 | F15: 0.9675 | G15: 0.975 | R15: 28 | S15: 1 | T15: 0.926 | U15: 0.9815 | V15: 1 | W15: 0.9675 | X15: 0.975
A16: 32 | B16: 1 | C16: 1 | D16: 1 | E16: 0.848 | F16: 1 | G16: 0.9696 | R16: 32 | S16: 1 | T16: 1 | U16: 1 | V16: 0.848 | W16: 1 | X16: 0.9696
A17: 36 | B17: 0.97 | C17: 0.9965 | D17: 1 | E17: 0.827 | F17: 1 | G17: 0.9587 | R17: 36 | S17: 0.97 | T17: 0.9965 | U17: 1 | V17: 0.827 | W17: 1 | X17: 0.9587
A18: 40 | B18: 1 | C18: 0.7415 | D18: 0.938 | E18: 1 | F18: 0.857 | G18: 0.9073 | R18: 40 | S18: 1 | T18: 0.7415 | U18: 0.938 | V18: 1 | W18: 0.857 | X18: 0.9073
A19: Average | B19: 0.9957142857 | C19: 0.952 | D19: 0.9885 | E19: 0.9535714286 | F19: 0.9749285714 | G19: 0.9729428571 | R19: Average | S19: 0.9957142857 | T19: 0.952 | U19: 0.9885 | V19: 0.9535714286 | W19: 0.9749285714 | X19: 0.9729428571
A21: Instructions
A22: 1. Copy and paste values for independent variables (temperature and time) and dependent variables (observed and predicted values) into the input cells (A2:D401) in spreadsheet 2 (2!).
A23: 2. Update the pivot table (3!P1)
B24: a. Click on 3!P1 → Analyze → Refresh or (Alt + F5) → Filter for Rows → Select All → Deselect Blank → Filter for Columns → Select All → Deselect Blank.
B25: b. Click Field List, Σ Values Pull Down Menu → Value Field Settings → Select Count.
A26: 3. Answer (A) questions (Q) 1 to 4 for test data criteria in the Decision Tree by selecting "yes" or "no" from the pull down menu.
A27: 4. Change Σ Value from Count to Average
B28: a. Click Field List, Σ Values Pull Down Menu → Value Field Settings → Select Average.
B29: b. Click on any pAPZ value in the pivot table and then click on APZ Macro button to highlight pAPZ that are < 0.7.
A30: 5. Answer (A) questions (Q) 5 to7 for model performance criteria in the Decision Tree by selecting "yes" or "no" from the pull down menu.

Sheet 4
A1: Temp | B1: Time | C1: Observed | D1: Predicted | E1: Residual | F1: APZ
A2: 18 | B2: 1 | C2: 0.52 | D2: 0.84 | E2: =IF(C2="","",IF(C2*D2<0,-2.5,C2-D2)) -> -0.32 | F2: =IF(E2="","",IF(E2<-2,0,IF(E2>1,0,VLOOKUP(E2,'8'!$A$2:$B$1503,2,TRUE)))) -> 1
A3: 18 | B3: 1 | C3: 1.02 | D3: 0.840756581 | E3: =IF(C3="","",IF(C3*D3<0,-2.5,C3-D3)) -> 0.179243419 | F3: =IF(E3="","",IF(E3<-2,0,IF(E3>1,0,VLOOKUP(E3,'8'!$A$2:$B$1503,2,TRUE)))) -> 1
A4: 18 | B4: 1 | C4: 1.17 | D4: 0.840756581 | E4: 0.329243419 | F4: =IF(E4="","",IF(E4<-2,0,IF(E4>1,0,VLOOKUP(E4,'8'!$A$2:$B$1503,2,TRUE)))) -> 1
A5: 18 | B5: 3 | C5: 0.74 | D5: 0.8542226344 | E5: -0.1142226344 | F5: =IF(E5="","",IF(E5<-2,0,IF(E5>1,0,VLOOKUP(E5,'8'!$A$2:$B$1503,2,TRUE)))) -> 1
A6: 18 | B6: 3 | C6: 1.17 | D6: 0.8542226344 | E6: 0.3157773656 | F6: =IF(E6="","",IF(E6<-2,0,IF(E6>1,0,VLOOKUP(E6,'8'!$A$2:$B$1503,2,TRUE)))) -> 1
A7: 18 | B7: 3 | C7: 1.3 | D7: 0.8542226344 | E7: 0.4457773656 | F7: =IF(E7="","",IF(E7<-2,0,IF(E7>1,0,VLOOKUP(E7,'8'!$A$2:$B$1503,2,TRUE)))) -> 1
A8: 18 | B8: 5 | C8: 0.18 | D8: 0.8964482899 | E8: -0.7164482899 | F8: =IF(E8="","",IF(E8<-2,0,IF(E8>1,0,VLOOKUP(E8,'8'!$A$2:$B$1503,2,TRUE)))) -> 1
A9: 18 | B9: 5 | C9: 0.74 | D9: 0.8964482899 | E9: -0.1564482899 | F9: =IF(E9="","",IF(E9<-2,0,IF(E9>1,0,VLOOKUP(E9,'8'!$A$2:$B$1503,2,TRUE)))) -> 1
A10: 18 | B10: 5 | C10: 0.74 | D10: 0.8964482899 | E10: -0.1564482899 | F10: =IF(E10="","",IF(E10<-2,0,IF(E10>1,0,VLOOKUP(E10,'8'!$A$2:$B$1503,2,TRUE)))) -> 1
A11: 18 | B11: 7 | C11: 1.02 | D11: 1.025747636 | E11: -0.005747635539 | F11: =IF(E11="","",IF(E11<-2,0,IF(E11>1,0,VLOOKUP(E11,'8'!$A$2:$B$1503,2,TRUE)))) -> 1
A12: 18 | B12: 7 | C12: 1.33 | D12: 1.025747636 | E12: 0.3042523645 | F12: =IF(E12="","",IF(E12<-2,0,IF(E12>1,0,VLOOKUP(E12,'8'!$A$2:$B$1503,2,TRUE)))) -> 1
A13: 18 | B13: 7 | C13: 1.53 | D13: 1.025747636 | E13: 0.5042523645 | F13: =IF(E13="","",IF(E13<-2,0,IF(E13>1,0,VLOOKUP(E13,'8'!$A$2:$B$1503,2,TRUE)))) -> 0.992
A14: 22 | B14: 1 | C14: 0.74 | D14: 0.8421810655 | E14: -0.1021810655 | F14: =IF(E14="","",IF(E14<-2,0,IF(E14>1,0,VLOOKUP(E14,'8'!$A$2:$B$1503,2,TRUE)))) -> 1
A15: 22 | B15: 1 | C15: 0.92 | D15: 0.8421810655 | E15: 0.07781893447 | F15: =IF(E15="","",IF(E15<-2,0,IF(E15>1,0,VLOOKUP(E15,'8'!$A$2:$B$1503,2,TRUE)))) -> 1
A16: 22 | B16: 1 | C16: 1.27 | D16: 0.8421810655 | E16: 0.4278189345 | F16: =IF(E16="","",IF(E16<-2,0,IF(E16>1,0,VLOOKUP(E16,'8'!$A$2:$B$1503,2,TRUE)))) -> 1
A17: 22 | B17: 3 | C17: 0.92 | D17: 0.8674784752 | E17: 0.05252152482 | F17: =IF(E17="","",IF(E17<-2,0,IF(E17>1,0,VLOOKUP(E17,'8'!$A$2:$B$1503,2,TRUE)))) -> 1
A18: 22 | B18: 3 | C18: 1.09 | D18: 0.8674784752 | E18: 0.2225215248 | F18: =IF(E18="","",IF(E18<-2,0,IF(E18>1,0,VLOOKUP(E18,'8'!$A$2:$B$1503,2,TRUE)))) -> 1
A19: 22 | B19: 3 | C19: 1.27 | D19: 0.8674784752 | E19: 0.4025215248 | F19: =IF(E19="","",IF(E19<-2,0,IF(E19>1,0,VLOOKUP(E19,'8'!$A$2:$B$1503,2,TRUE)))) -> 1
A20: 22 | B20: 5 | C20: 0.52 | D20: 1.042657856 | E20: -0.5226578564 | F20: =IF(E20="","",IF(E20<-2,0,IF(E20>1,0,VLOOKUP(E20,'8'!$A$2:$B$1503,2,TRUE)))) -> 1
A21: 22 | B21: 5 | C21: 0.52 | D21: 1.042657856 | E21: -0.5226578564 | F21: =IF(E21="","",IF(E21<-2,0,IF(E21>1,0,VLOOKUP(E21,'8'!$A$2:$B$1503,2,TRUE)))) -> 1
A22: 22 | B22: 5 | C22: 1.63 | D22: 1.042657856 | E22: 0.5873421436 | F22: =IF(E22="","",IF(E22<-2,0,IF(E22>1,0,VLOOKUP(E22,'8'!$A$2:$B$1503,2,TRUE)))) -> 0.826
A23: 22 | B23: 7 | C23: 0.91 | D23: 1.631618802 | E23: -0.7216188015 | F23: =IF(E23="","",IF(E23<-2,0,IF(E23>1,0,VLOOKUP(E23,'8'!$A$2:$B$1503,2,TRUE)))) -> 1
A24: 22 | B24: 7 | C24: 1.17 | D24: 1.631618802 | E24: -0.4616188015 | F24: =IF(E24="","",IF(E24<-2,0,IF(E24>1,0,VLOOKUP(E24,'8'!$A$2:$B$1503,2,TRUE)))) -> 1
A25: 22 | B25: 7 | C25: 1.72 | D25: 1.631618802 | E25: 0.08838119845 | F25: =IF(E25="","",IF(E25<-2,0,IF(E25>1,0,VLOOKUP(E25,'8'!$A$2:$B$1503,2,TRUE)))) -> 1
A26: 26 | B26: 1 | C26: 0.74 | D26: 0.8479547334 | E26: -0.1079547334 | F26: =IF(E26="","",IF(E26<-2,0,IF(E26>1,0,VLOOKUP(E26,'8'!$A$2:$B$1503,2,TRUE)))) -> 1
A27: 26 | B27: 1 | C27: 0.92 | D27: 0.8479547334 | E27: 0.07204526657 | F27: =IF(E27="","",IF(E27<-2,0,IF(E27>1,0,VLOOKUP(E27,'8'!$A$2:$B$1503,2,TRUE)))) -> 1
A28: 26 | B28: 1 | C28: 1.17 | D28: 0.8479547334 | E28: 0.3220452666 | F28: =IF(E28="","",IF(E28<-2,0,IF(E28>1,0,VLOOKUP(E28,'8'!$A$2:$B$1503,2,TRUE)))) -> 1
A29: 26 | B29: 3 | C29: 0.52 | D29: 0.9354652462 | E29: -0.4154652462 | F29: =IF(E29="","",IF(E29<-2,0,IF(E29>1,0,VLOOKUP(E29,'8'!$A$2:$B$1503,2,TRUE)))) -> 1
A30: 26 | B30: 3 | C30: 0.7 | D30: 0.9354652462 | E30: -0.2354652462 | F30: =IF(E30="","",IF(E30<-2,0,IF(E30>1,0,VLOOKUP(E30,'8'!$A$2:$B$1503,2,TRUE)))) -> 1
A31: 26 | B31: 3 | C31: 0.92 | D31: 0.9354652462 | E31: -0.01546524621 | F31: =IF(E31="","",IF(E31<-2,0,IF(E31>1,0,VLOOKUP(E31,'8'!$A$2:$B$1503,2,TRUE)))) -> 1
A32: 26 | B32: 5 | C32: 1.65 | D32: 1.751100636 | E32: -0.1011006361 | F32: =IF(E32="","",IF(E32<-2,0,IF(E32>1,0,VLOOKUP(E32,'8'!$A$2:$B$1503,2,TRUE)))) -> 1
A33: 26 | B33: 5 | C33: 1.72 | D33: 1.751100636 | E33: -0.03110063607 | F33: =IF(E33="","",IF(E33<-2,0,IF(E33>1,0,VLOOKUP(E33,'8'!$A$2:$B$1503,2,TRUE)))) -> 1
A34: 26 | B34: 5 | C34: 2.37 | D34: 1.751100636 | E34: 0.6188993639 | F34: =IF(E34="","",IF(E34<-2,0,IF(E34>1,0,VLOOKUP(E34,'8'!$A$2:$B$1503,2,TRUE)))) -> 0.764
A35: 26 | B35: 7 | C35: 1.97 | D35: 2.386147826 | E35: -0.4161478261 | F35: =IF(E35="","",IF(E35<-2,0,IF(E35>1,0,VLOOKUP(E35,'8'!$A$2:$B$1503,2,TRUE)))) -> 1
A36: 26 | B36: 7 | C36: 1.97 | D36: 2.386147826 | E36: -0.4161478261 | F36: =IF(E36="","",IF(E36<-2,0,IF(E36>1,0,VLOOKUP(E36,'8'!$A$2:$B$1503,2,TRUE)))) -> 1
A37: 26 | B37: 7 | C37: 2.89 | D37: 2.386147826 | E37: 0.5038521739 | F37: =IF(E37="","",IF(E37<-2,0,IF(E37>1,0,VLOOKUP(E37,'8'!$A$2:$B$1503,2,TRUE)))) -> 0.994
A38: 30 | B38: 1 | C38: 1.02 | D38: 0.8681934452 | E38: 0.1518065548 | F38: =IF(E38="","",IF(E38<-2,0,IF(E38>1,0,VLOOKUP(E38,'8'!$A$2:$B$1503,2,TRUE)))) -> 1
A39: 30 | B39: 1 | C39: 1.08 | D39: 0.8681934452 | E39: 0.2118065548 | F39: =IF(E39="","",IF(E39<-2,0,IF(E39>1,0,VLOOKUP(E39,'8'!$A$2:$B$1503,2,TRUE)))) -> 1
A40: 30 | B40: 1 | C40: 1.09 | D40: 0.8681934452 | E40: 0.2218065548 | F40: =IF(E40="","",IF(E40<-2,0,IF(E40>1,0,VLOOKUP(E40,'8'!$A$2:$B$1503,2,TRUE)))) -> 1
A41: 30 | B41: 3 | C41: 1.17 | D41: 1.346817588 | E41: -0.1768175885 | F41: =IF(E41="","",IF(E41<-2,0,IF(E41>1,0,VLOOKUP(E41,'8'!$A$2:$B$1503,2,TRUE)))) -> 1
A42: 30 | B42: 3 | C42: 1.72 | D42: 1.346817588 | E42: 0.3731824115 | F42: =IF(E42="","",IF(E42<-2,0,IF(E42>1,0,VLOOKUP(E42,'8'!$A$2:$B$1503,2,TRUE)))) -> 1
A43: 30 | B43: 3 | C43: 1.82 | D43: 1.346817588 | E43: 0.4731824115 | F43: =IF(E43="","",IF(E43<-2,0,IF(E43>1,0,VLOOKUP(E43,'8'!$A$2:$B$1503,2,TRUE)))) -> 1
A44: 30 | B44: 5 | C44: 2.16 | D44: 2.442929654 | E44: -0.2829296541 | F44: =IF(E44="","",IF(E44<-2,0,IF(E44>1,0,VLOOKUP(E44,'8'!$A$2:$B$1503,2,TRUE)))) -> 1
A45: 30 | B45: 5 | C45: 2.65 | D45: 2.442929654 | E45: 0.2070703459 | F45: =IF(E45="","",IF(E45<-2,0,IF(E45>1,0,VLOOKUP(E45,'8'!$A$2:$B$1503,2,TRUE)))) -> 1
A46: 30 | B46: 5 | C46: 2.75 | D46: 2.442929654 | E46: 0.3070703459 | F46: =IF(E46="","",IF(E46<-2,0,IF(E46>1,0,VLOOKUP(E46,'8'!$A$2:$B$1503,2,TRUE)))) -> 1
A47: 30 | B47: 7 | C47: 3.73 | D47: 3.579779139 | E47: 0.1502208609 | F47: =IF(E47="","",IF(E47<-2,0,IF(E47>1,0,VLOOKUP(E47,'8'!$A$2:$B$1503,2,TRUE)))) -> 1
A48: 30 | B48: 7 | C48: 3.81 | D48: 3.579779139 | E48: 0.2302208609 | F48: =IF(E48="","",IF(E48<-2,0,IF(E48>1,0,VLOOKUP(E48,'8'!$A$2:$B$1503,2,TRUE)))) -> 1
A49: 30 | B49: 7 | C49: 4.22 | D49: 3.579779139 | E49: 0.6402208609 | F49: =IF(E49="","",IF(E49<-2,0,IF(E49>1,0,VLOOKUP(E49,'8'!$A$2:$B$1503,2,TRUE)))) -> 0.72
A50: 34 | B50: 1 | C50: 0.49 | D50: 0.9180368492 | E50: -0.4280368492 | F50: =IF(E50="","",IF(E50<-2,0,IF(E50>1,0,VLOOKUP(E50,'8'!$A$2:$B$1503,2,TRUE)))) -> 1
A51: 34 | B51: 1 | C51: 0.74 | D51: 0.9180368492 | E51: -0.1780368492 | F51: =IF(E51="","",IF(E51<-2,0,IF(E51>1,0,VLOOKUP(E51,'8'!$A$2:$B$1503,2,TRUE)))) -> 1
A52: 34 | B52: 1 | C52: 1.27 | D52: 0.9180368492 | E52: 0.3519631508 | F52: =IF(E52="","",IF(E52<-2,0,IF(E52>1,0,VLOOKUP(E52,'8'!$A$2:$B$1503,2,TRUE)))) -> 1
A53: 34 | B53: 3 | C53: 1.63 | D53: 1.894407072 | E53: -0.2644070721 | F53: =IF(E53="","",IF(E53<-2,0,IF(E53>1,0,VLOOKUP(E53,'8'!$A$2:$B$1503,2,TRUE)))) -> 1
A54: 34 | B54: 3 | C54: 1.93 | D54: 1.894407072 | E54: 0.03559292785 | F54: =IF(E54="","",IF(E54<-2,0,IF(E54>1,0,VLOOKUP(E54,'8'!$A$2:$B$1503,2,TRUE)))) -> 1
A55: 34 | B55: 3 | C55: 2.74 | D55: 1.894407072 | E55: 0.8455929279 | F55: =IF(E55="","",IF(E55<-2,0,IF(E55>1,0,VLOOKUP(E55,'8'!$A$2:$B$1503,2,TRUE)))) -> 0.31
A56: 34 | B56: 5 | C56: 3.09 | D56: 3.154363704 | E56: -0.0643637038 | F56: =IF(E56="","",IF(E56<-2,0,IF(E56>1,0,VLOOKUP(E56,'8'!$A$2:$B$1503,2,TRUE)))) -> 1
A57: 34 | B57: 5 | C57: 3.37 | D57: 3.154363704 | E57: 0.2156362962 | F57: =IF(E57="","",IF(E57<-2,0,IF(E57>1,0,VLOOKUP(E57,'8'!$A$2:$B$1503,2,TRUE)))) -> 1
A58: 34 | B58: 5 | C58: 3.89 | D58: 3.154363704 | E58: 0.7356362962 | F58: =IF(E58="","",IF(E58<-2,0,IF(E58>1,0,VLOOKUP(E58,'8'!$A$2:$B$1503,2,TRUE)))) -> 0.53
A59: 34 | B59: 7 | C59: 3.16 | D59: 4.800961442 | E59: -1.640961442 | F59: =IF(E59="","",IF(E59<-2,0,IF(E59>1,0,VLOOKUP(E59,'8'!$A$2:$B$1503,2,TRUE)))) -> 0.359
A60: 34 | B60: 7 | C60: 4.95 | D60: 4.800961442 | E60: 0.1490385582 | F60: =IF(E60="","",IF(E60<-2,0,IF(E60>1,0,VLOOKUP(E60,'8'!$A$2:$B$1503,2,TRUE)))) -> 1
A61: 34 | B61: 7 | C61: 5.44 | D61: 4.800961442 | E61: 0.6390385582 | F61: =IF(E61="","",IF(E61<-2,0,IF(E61>1,0,VLOOKUP(E61,'8'!$A$2:$B$1503,2,TRUE)))) -> 0.722
A62: 38 | B62: 1 | C62: 0.52 | D62: 0.9775958356 | E62: -0.4575958356 | F62: =IF(E62="","",IF(E62<-2,0,IF(E62>1,0,VLOOKUP(E62,'8'!$A$2:$B$1503,2,TRUE)))) -> 1
A63: 38 | B63: 1 | C63: 1.09 | D63: 0.9775958356 | E63: 0.1124041644 | F63: =IF(E63="","",IF(E63<-2,0,IF(E63>1,0,VLOOKUP(E63,'8'!$A$2:$B$1503,2,TRUE)))) -> 1
A64: 38 | B64: 1 | C64: 1.25 | D64: 0.9775958356 | E64: 0.2724041644 | F64: =IF(E64="","",IF(E64<-2,0,IF(E64>1,0,VLOOKUP(E64,'8'!$A$2:$B$1503,2,TRUE)))) -> 1
A65: 38 | B65: 3 | C65: 1.72 | D65: 2.100349485 | E65: -0.3803494847 | F65: =IF(E65="","",IF(E65<-2,0,IF(E65>1,0,VLOOKUP(E65,'8'!$A$2:$B$1503,2,TRUE)))) -> 1
A66: 38 | B66: 3 | C66: 2.59 | D66: 2.100349485 | E66: 0.4896505153 | F66: =IF(E66="","",IF(E66<-2,0,IF(E66>1,0,VLOOKUP(E66,'8'!$A$2:$B$1503,2,TRUE)))) -> 1
A67: 38 | B67: 3 | C67: 3.09 | D67: 2.100349485 | E67: =IF(C67="","",IF(C67*D67<0,-2.5,C67-D67)) -> 0.9896505153 | F67: =IF(E67="","",IF(E67<-2,0,IF(E67>1,0,VLOOKUP(E67,'8'!$A$2:$B$1503,2,TRUE)))) -> 0.022
A68: 38 | B68: 5 | C68: 3.4 | D68: 3.555216612 | E68: -0.1552166117 | F68: =IF(E68="","",IF(E68<-2,0,IF(E68>1,0,VLOOKUP(E68,'8'!$A$2:$B$1503,2,TRUE)))) -> 1
A69: 38 | B69: 5 | C69: 3.8 | D69: 3.555216612 | E69: 0.2447833883 | F69: =IF(E69="","",IF(E69<-2,0,IF(E69>1,0,VLOOKUP(E69,'8'!$A$2:$B$1503,2,TRUE)))) -> 1
A70: 38 | B70: 5 | C70: 4.67 | D70: 3.555216612 | E70: 1.114783388 | F70: =IF(E70="","",IF(E70<-2,0,IF(E70>1,0,VLOOKUP(E70,'8'!$A$2:$B$1503,2,TRUE)))) -> 0
A71: 38 | B71: 7 | C71: 4.93 | D71: 5.447692475 | E71: -0.5176924746 | F71: =IF(E71="","",IF(E71<-2,0,IF(E71>1,0,VLOOKUP(E71,'8'!$A$2:$B$1503,2,TRUE)))) -> 1
A72: 38 | B72: 7 | C72: 5.16 | D72: 5.447692475 | E72: -0.2876924746 | F72: =IF(E72="","",IF(E72<-2,0,IF(E72>1,0,VLOOKUP(E72,'8'!$A$2:$B$1503,2,TRUE)))) -> 1
A73: 38 | B73: 7 | C73: 5.73 | D73: 5.447692475 | E73: 0.2823075254 | F73: =IF(E73="","",IF(E73<-2,0,IF(E73>1,0,VLOOKUP(E73,'8'!$A$2:$B$1503,2,TRUE)))) -> 1
F74: =IF(E74="","",IF(E74<-2,0,IF(E74>1,0,VLOOKUP(E74,'8'!$A$2:$B$1503,2,TRUE)))) -> 
F75: =IF(E75="","",IF(E75<-2,0,IF(E75>1,0,VLOOKUP(E75,'8'!$A$2:$B$1503,2,TRUE)))) -> 
F76: =IF(E76="","",IF(E76<-2,0,IF(E76>1,0,VLOOKUP(E76,'8'!$A$2:$B$1503,2,TRUE)))) -> 
F77: =IF(E77="","",IF(E77<-2,0,IF(E77>1,0,VLOOKUP(E77,'8'!$A$2:$B$1503,2,TRUE)))) -> 
F78: =IF(E78="","",IF(E78<-2,0,IF(E78>1,0,VLOOKUP(E78,'8'!$A$2:$B$1503,2,TRUE)))) -> 
F79: =IF(E79="","",IF(E79<-2,0,IF(E79>1,0,VLOOKUP(E79,'8'!$A$2:$B$1503,2,TRUE)))) -> 
F80: =IF(E80="","",IF(E80<-2,0,IF(E80>1,0,VLOOKUP(E80,'8'!$A$2:$B$1503,2,TRUE)))) -> 
F81: =IF(E81="","",IF(E81<-2,0,IF(E81>1,0,VLOOKUP(E81,'8'!$A$2:$B$1503,2,TRUE)))) -> 
F82: =IF(E82="","",IF(E82<-2,0,IF(E82>1,0,VLOOKUP(E82,'8'!$A$2:$B$1503,2,TRUE)))) -> 
F83: =IF(E83="","",IF(E83<-2,0,IF(E83>1,0,VLOOKUP(E83,'8'!$A$2:$B$1503,2,TRUE)))) -> 
F84: =IF(E84="","",IF(E84<-2,0,IF(E84>1,0,VLOOKUP(E84,'8'!$A$2:$B$1503,2,TRUE)))) -> 
F85: =IF(E85="","",IF(E85<-2,0,IF(E85>1,0,VLOOKUP(E85,'8'!$A$2:$B$1503,2,TRUE)))) -> 
F86: =IF(E86="","",IF(E86<-2,0,IF(E86>1,0,VLOOKUP(E86,'8'!$A$2:$B$1503,2,TRUE)))) -> 
F87: =IF(E87="","",IF(E87<-2,0,IF(E87>1,0,VLOOKUP(E87,'8'!$A$2:$B$1503,2,TRUE)))) -> 
F88: =IF(E88="","",IF(E88<-2,0,IF(E88>1,0,VLOOKUP(E88,'8'!$A$2:$B$1503,2,TRUE)))) -> 
F89: =IF(E89="","",IF(E89<-2,0,IF(E89>1,0,VLOOKUP(E89,'8'!$A$2:$B$1503,2,TRUE)))) -> 
F90: =IF(E90="","",IF(E90<-2,0,IF(E90>1,0,VLOOKUP(E90,'8'!$A$2:$B$1503,2,TRUE)))) -> 
F91: =IF(E91="","",IF(E91<-2,0,IF(E91>1,0,VLOOKUP(E91,'8'!$A$2:$B$1503,2,TRUE)))) -> 
F92: =IF(E92="","",IF(E92<-2,0,IF(E92>1,0,VLOOKUP(E92,'8'!$A$2:$B$1503,2,TRUE)))) -> 
F93: =IF(E93="","",IF(E93<-2,0,IF(E93>1,0,VLOOKUP(E93,'8'!$A$2:$B$1503,2,TRUE)))) -> 
F94: =IF(E94="","",IF(E94<-2,0,IF(E94>1,0,VLOOKUP(E94,'8'!$A$2:$B$1503,2,TRUE)))) -> 
F95: =IF(E95="","",IF(E95<-2,0,IF(E95>1,0,VLOOKUP(E95,'8'!$A$2:$B$1503,2,TRUE)))) -> 
F96: =IF(E96="","",IF(E96<-2,0,IF(E96>1,0,VLOOKUP(E96,'8'!$A$2:$B$1503,2,TRUE)))) -> 
F97: =IF(E97="","",IF(E97<-2,0,IF(E97>1,0,VLOOKUP(E97,'8'!$A$2:$B$1503,2,TRUE)))) -> 
F98: =IF(E98="","",IF(E98<-2,0,IF(E98>1,0,VLOOKUP(E98,'8'!$A$2:$B$1503,2,TRUE)))) -> 
F99: =IF(E99="","",IF(E99<-2,0,IF(E99>1,0,VLOOKUP(E99,'8'!$A$2:$B$1503,2,TRUE)))) -> 
F100: =IF(E100="","",IF(E100<-2,0,IF(E100>1,0,VLOOKUP(E100,'8'!$A$2:$B$1503,2,TRUE)))) -> 
F101: =IF(E101="","",IF(E101<-2,0,IF(E101>1,0,VLOOKUP(E101,'8'!$A$2:$B$1503,2,TRUE)))) -> 
F102: =IF(E102="","",IF(E102<-2,0,IF(E102>1,0,VLOOKUP(E102,'8'!$A$2:$B$1503,2,TRUE)))) -> 
F103: =IF(E103="","",IF(E103<-2,0,IF(E103>1,0,VLOOKUP(E103,'8'!$A$2:$B$1503,2,TRUE)))) -> 
F104: =IF(E104="","",IF(E104<-2,0,IF(E104>1,0,VLOOKUP(E104,'8'!$A$2:$B$1503,2,TRUE)))) -> 
F105: =IF(E105="","",IF(E105<-2,0,IF(E105>1,0,VLOOKUP(E105,'8'!$A$2:$B$1503,2,TRUE)))) -> 
F106: =IF(E106="","",IF(E106<-2,0,IF(E106>1,0,VLOOKUP(E106,'8'!$A$2:$B$1503,2,TRUE)))) -> 
F107: =IF(E107="","",IF(E107<-2,0,IF(E107>1,0,VLOOKUP(E107,'8'!$A$2:$B$1503,2,TRUE)))) -> 
F108: =IF(E108="","",IF(E108<-2,0,IF(E108>1,0,VLOOKUP(E108,'8'!$A$2:$B$1503,2,TRUE)))) -> 
F109: =IF(E109="","",IF(E109<-2,0,IF(E109>1,0,VLOOKUP(E109,'8'!$A$2:$B$1503,2,TRUE)))) -> 
F110: =IF(E110="","",IF(E110<-2,0,IF(E110>1,0,VLOOKUP(E110,'8'!$A$2:$B$1503,2,TRUE)))) -> 
F111: =IF(E111="","",IF(E111<-2,0,IF(E111>1,0,VLOOKUP(E111,'8'!$A$2:$B$1503,2,TRUE)))) -> 
F112: =IF(E112="","",IF(E112<-2,0,IF(E112>1,0,VLOOKUP(E112,'8'!$A$2:$B$1503,2,TRUE)))) -> 
F113: =IF(E113="","",IF(E113<-2,0,IF(E113>1,0,VLOOKUP(E113,'8'!$A$2:$B$1503,2,TRUE)))) -> 
F114: =IF(E114="","",IF(E114<-2,0,IF(E114>1,0,VLOOKUP(E114,'8'!$A$2:$B$1503,2,TRUE)))) -> 
F115: =IF(E115="","",IF(E115<-2,0,IF(E115>1,0,VLOOKUP(E115,'8'!$A$2:$B$1503,2,TRUE)))) -> 
F116: =IF(E116="","",IF(E116<-2,0,IF(E116>1,0,VLOOKUP(E116,'8'!$A$2:$B$1503,2,TRUE)))) -> 
F117: =IF(E117="","",IF(E117<-2,0,IF(E117>1,0,VLOOKUP(E117,'8'!$A$2:$B$1503,2,TRUE)))) -> 
F118: =IF(E118="","",IF(E118<-2,0,IF(E118>1,0,VLOOKUP(E118,'8'!$A$2:$B$1503,2,TRUE)))) -> 
F119: =IF(E119="","",IF(E119<-2,0,IF(E119>1,0,VLOOKUP(E119,'8'!$A$2:$B$1503,2,TRUE)))) -> 
F120: =IF(E120="","",IF(E120<-2,0,IF(E120>1,0,VLOOKUP(E120,'8'!$A$2:$B$1503,2,TRUE)))) -> 
F121: =IF(E121="","",IF(E121<-2,0,IF(E121>1,0,VLOOKUP(E121,'8'!$A$2:$B$1503,2,TRUE)))) -> 
F122: =IF(E122="","",IF(E122<-2,0,IF(E122>1,0,VLOOKUP(E122,'8'!$A$2:$B$1503,2,TRUE)))) -> 
F123: =IF(E123="","",IF(E123<-2,0,IF(E123>1,0,VLOOKUP(E123,'8'!$A$2:$B$1503,2,TRUE)))) -> 
F124: =IF(E124="","",IF(E124<-2,0,IF(E124>1,0,VLOOKUP(E124,'8'!$A$2:$B$1503,2,TRUE)))) -> 
F125: =IF(E125="","",IF(E125<-2,0,IF(E125>1,0,VLOOKUP(E125,'8'!$A$2:$B$1503,2,TRUE)))) -> 
F126: =IF(E126="","",IF(E126<-2,0,IF(E126>1,0,VLOOKUP(E126,'8'!$A$2:$B$1503,2,TRUE)))) -> 
F127: =IF(E127="","",IF(E127<-2,0,IF(E127>1,0,VLOOKUP(E127,'8'!$A$2:$B$1503,2,TRUE)))) -> 
F128: =IF(E128="","",IF(E128<-2,0,IF(E128>1,0,VLOOKUP(E128,'8'!$A$2:$B$1503,2,TRUE)))) -> 
F129: =IF(E129="","",IF(E129<-2,0,IF(E129>1,0,VLOOKUP(E129,'8'!$A$2:$B$1503,2,TRUE)))) -> 
F130: =IF(E130="","",IF(E130<-2,0,IF(E130>1,0,VLOOKUP(E130,'8'!$A$2:$B$1503,2,TRUE)))) -> 
E131: =IF(C131="","",IF(C131*D131<0,-2.5,C131-D131)) ->  | F131: =IF(E131="","",IF(E131<-2,0,IF(E131>1,0,VLOOKUP(E131,'8'!$A$2:$B$1503,2,TRUE)))) -> 
F132: =IF(E132="","",IF(E132<-2,0,IF(E132>1,0,VLOOKUP(E132,'8'!$A$2:$B$1503,2,TRUE)))) -> 
F133: =IF(E133="","",IF(E133<-2,0,IF(E133>1,0,VLOOKUP(E133,'8'!$A$2:$B$1503,2,TRUE)))) -> 
F134: =IF(E134="","",IF(E134<-2,0,IF(E134>1,0,VLOOKUP(E134,'8'!$A$2:$B$1503,2,TRUE)))) -> 
F135: =IF(E135="","",IF(E135<-2,0,IF(E135>1,0,VLOOKUP(E135,'8'!$A$2:$B$1503,2,TRUE)))) -> 
F136: =IF(E136="","",IF(E136<-2,0,IF(E136>1,0,VLOOKUP(E136,'8'!$A$2:$B$1503,2,TRUE)))) -> 
F137: =IF(E137="","",IF(E137<-2,0,IF(E137>1,0,VLOOKUP(E137,'8'!$A$2:$B$1503,2,TRUE)))) -> 
F138: =IF(E138="","",IF(E138<-2,0,IF(E138>1,0,VLOOKUP(E138,'8'!$A$2:$B$1503,2,TRUE)))) -> 
F139: =IF(E139="","",IF(E139<-2,0,IF(E139>1,0,VLOOKUP(E139,'8'!$A$2:$B$1503,2,TRUE)))) -> 
F140: =IF(E140="","",IF(E140<-2,0,IF(E140>1,0,VLOOKUP(E140,'8'!$A$2:$B$1503,2,TRUE)))) -> 
F141: =IF(E141="","",IF(E141<-2,0,IF(E141>1,0,VLOOKUP(E141,'8'!$A$2:$B$1503,2,TRUE)))) -> 
F142: =IF(E142="","",IF(E142<-2,0,IF(E142>1,0,VLOOKUP(E142,'8'!$A$2:$B$1503,2,TRUE)))) -> 
F143: =IF(E143="","",IF(E143<-2,0,IF(E143>1,0,VLOOKUP(E143,'8'!$A$2:$B$1503,2,TRUE)))) -> 
F144: =IF(E144="","",IF(E144<-2,0,IF(E144>1,0,VLOOKUP(E144,'8'!$A$2:$B$1503,2,TRUE)))) -> 
F145: =IF(E145="","",IF(E145<-2,0,IF(E145>1,0,VLOOKUP(E145,'8'!$A$2:$B$1503,2,TRUE)))) -> 
F146: =IF(E146="","",IF(E146<-2,0,IF(E146>1,0,VLOOKUP(E146,'8'!$A$2:$B$1503,2,TRUE)))) -> 
F147: =IF(E147="","",IF(E147<-2,0,IF(E147>1,0,VLOOKUP(E147,'8'!$A$2:$B$1503,2,TRUE)))) -> 
F148: =IF(E148="","",IF(E148<-2,0,IF(E148>1,0,VLOOKUP(E148,'8'!$A$2:$B$1503,2,TRUE)))) -> 
F149: =IF(E149="","",IF(E149<-2,0,IF(E149>1,0,VLOOKUP(E149,'8'!$A$2:$B$1503,2,TRUE)))) -> 
F150: =IF(E150="","",IF(E150<-2,0,IF(E150>1,0,VLOOKUP(E150,'8'!$A$2:$B$1503,2,TRUE)))) -> 
F151: =IF(E151="","",IF(E151<-2,0,IF(E151>1,0,VLOOKUP(E151,'8'!$A$2:$B$1503,2,TRUE)))) -> 
F152: =IF(E152="","",IF(E152<-2,0,IF(E152>1,0,VLOOKUP(E152,'8'!$A$2:$B$1503,2,TRUE)))) -> 
F153: =IF(E153="","",IF(E153<-2,0,IF(E153>1,0,VLOOKUP(E153,'8'!$A$2:$B$1503,2,TRUE)))) -> 
F154: =IF(E154="","",IF(E154<-2,0,IF(E154>1,0,VLOOKUP(E154,'8'!$A$2:$B$1503,2,TRUE)))) -> 
F155: =IF(E155="","",IF(E155<-2,0,IF(E155>1,0,VLOOKUP(E155,'8'!$A$2:$B$1503,2,TRUE)))) -> 
F156: =IF(E156="","",IF(E156<-2,0,IF(E156>1,0,VLOOKUP(E156,'8'!$A$2:$B$1503,2,TRUE)))) -> 
F157: =IF(E157="","",IF(E157<-2,0,IF(E157>1,0,VLOOKUP(E157,'8'!$A$2:$B$1503,2,TRUE)))) -> 
F158: =IF(E158="","",IF(E158<-2,0,IF(E158>1,0,VLOOKUP(E158,'8'!$A$2:$B$1503,2,TRUE)))) -> 
F159: =IF(E159="","",IF(E159<-2,0,IF(E159>1,0,VLOOKUP(E159,'8'!$A$2:$B$1503,2,TRUE)))) -> 
F160: =IF(E160="","",IF(E160<-2,0,IF(E160>1,0,VLOOKUP(E160,'8'!$A$2:$B$1503,2,TRUE)))) -> 
F161: =IF(E161="","",IF(E161<-2,0,IF(E161>1,0,VLOOKUP(E161,'8'!$A$2:$B$1503,2,TRUE)))) -> 
F162: =IF(E162="","",IF(E162<-2,0,IF(E162>1,0,VLOOKUP(E162,'8'!$A$2:$B$1503,2,TRUE)))) -> 
F163: =IF(E163="","",IF(E163<-2,0,IF(E163>1,0,VLOOKUP(E163,'8'!$A$2:$B$1503,2,TRUE)))) -> 
F164: =IF(E164="","",IF(E164<-2,0,IF(E164>1,0,VLOOKUP(E164,'8'!$A$2:$B$1503,2,TRUE)))) -> 
F165: =IF(E165="","",IF(E165<-2,0,IF(E165>1,0,VLOOKUP(E165,'8'!$A$2:$B$1503,2,TRUE)))) -> 
F166: =IF(E166="","",IF(E166<-2,0,IF(E166>1,0,VLOOKUP(E166,'8'!$A$2:$B$1503,2,TRUE)))) -> 
F167: =IF(E167="","",IF(E167<-2,0,IF(E167>1,0,VLOOKUP(E167,'8'!$A$2:$B$1503,2,TRUE)))) -> 
F168: =IF(E168="","",IF(E168<-2,0,IF(E168>1,0,VLOOKUP(E168,'8'!$A$2:$B$1503,2,TRUE)))) -> 
F169: =IF(E169="","",IF(E169<-2,0,IF(E169>1,0,VLOOKUP(E169,'8'!$A$2:$B$1503,2,TRUE)))) -> 
F170: =IF(E170="","",IF(E170<-2,0,IF(E170>1,0,VLOOKUP(E170,'8'!$A$2:$B$1503,2,TRUE)))) -> 
F171: =IF(E171="","",IF(E171<-2,0,IF(E171>1,0,VLOOKUP(E171,'8'!$A$2:$B$1503,2,TRUE)))) -> 
F172: =IF(E172="","",IF(E172<-2,0,IF(E172>1,0,VLOOKUP(E172,'8'!$A$2:$B$1503,2,TRUE)))) -> 
F173: =IF(E173="","",IF(E173<-2,0,IF(E173>1,0,VLOOKUP(E173,'8'!$A$2:$B$1503,2,TRUE)))) -> 
F174: =IF(E174="","",IF(E174<-2,0,IF(E174>1,0,VLOOKUP(E174,'8'!$A$2:$B$1503,2,TRUE)))) -> 
F175: =IF(E175="","",IF(E175<-2,0,IF(E175>1,0,VLOOKUP(E175,'8'!$A$2:$B$1503,2,TRUE)))) -> 
F176: =IF(E176="","",IF(E176<-2,0,IF(E176>1,0,VLOOKUP(E176,'8'!$A$2:$B$1503,2,TRUE)))) -> 
F177: =IF(E177="","",IF(E177<-2,0,IF(E177>1,0,VLOOKUP(E177,'8'!$A$2:$B$1503,2,TRUE)))) -> 
F178: =IF(E178="","",IF(E178<-2,0,IF(E178>1,0,VLOOKUP(E178,'8'!$A$2:$B$1503,2,TRUE)))) -> 
F179: =IF(E179="","",IF(E179<-2,0,IF(E179>1,0,VLOOKUP(E179,'8'!$A$2:$B$1503,2,TRUE)))) -> 
F180: =IF(E180="","",IF(E180<-2,0,IF(E180>1,0,VLOOKUP(E180,'8'!$A$2:$B$1503,2,TRUE)))) -> 
F181: =IF(E181="","",IF(E181<-2,0,IF(E181>1,0,VLOOKUP(E181,'8'!$A$2:$B$1503,2,TRUE)))) -> 
F182: =IF(E182="","",IF(E182<-2,0,IF(E182>1,0,VLOOKUP(E182,'8'!$A$2:$B$1503,2,TRUE)))) -> 
F183: =IF(E183="","",IF(E183<-2,0,IF(E183>1,0,VLOOKUP(E183,'8'!$A$2:$B$1503,2,TRUE)))) -> 
F184: =IF(E184="","",IF(E184<-2,0,IF(E184>1,0,VLOOKUP(E184,'8'!$A$2:$B$1503,2,TRUE)))) -> 
F185: =IF(E185="","",IF(E185<-2,0,IF(E185>1,0,VLOOKUP(E185,'8'!$A$2:$B$1503,2,TRUE)))) -> 
F186: =IF(E186="","",IF(E186<-2,0,IF(E186>1,0,VLOOKUP(E186,'8'!$A$2:$B$1503,2,TRUE)))) -> 
F187: =IF(E187="","",IF(E187<-2,0,IF(E187>1,0,VLOOKUP(E187,'8'!$A$2:$B$1503,2,TRUE)))) -> 
F188: =IF(E188="","",IF(E188<-2,0,IF(E188>1,0,VLOOKUP(E188,'8'!$A$2:$B$1503,2,TRUE)))) -> 
F189: =IF(E189="","",IF(E189<-2,0,IF(E189>1,0,VLOOKUP(E189,'8'!$A$2:$B$1503,2,TRUE)))) -> 
F190: =IF(E190="","",IF(E190<-2,0,IF(E190>1,0,VLOOKUP(E190,'8'!$A$2:$B$1503,2,TRUE)))) -> 
F191: =IF(E191="","",IF(E191<-2,0,IF(E191>1,0,VLOOKUP(E191,'8'!$A$2:$B$1503,2,TRUE)))) -> 
F192: =IF(E192="","",IF(E192<-2,0,IF(E192>1,0,VLOOKUP(E192,'8'!$A$2:$B$1503,2,TRUE)))) -> 
F193: =IF(E193="","",IF(E193<-2,0,IF(E193>1,0,VLOOKUP(E193,'8'!$A$2:$B$1503,2,TRUE)))) -> 
F194: =IF(E194="","",IF(E194<-2,0,IF(E194>1,0,VLOOKUP(E194,'8'!$A$2:$B$1503,2,TRUE)))) -> 
E195: =IF(C195="","",IF(C195*D195<0,-2.5,C195-D195)) ->  | F195: =IF(E195="","",IF(E195<-2,0,IF(E195>1,0,VLOOKUP(E195,'8'!$A$2:$B$1503,2,TRUE)))) -> 
F196: =IF(E196="","",IF(E196<-2,0,IF(E196>1,0,VLOOKUP(E196,'8'!$A$2:$B$1503,2,TRUE)))) -> 
F197: =IF(E197="","",IF(E197<-2,0,IF(E197>1,0,VLOOKUP(E197,'8'!$A$2:$B$1503,2,TRUE)))) -> 
F198: =IF(E198="","",IF(E198<-2,0,IF(E198>1,0,VLOOKUP(E198,'8'!$A$2:$B$1503,2,TRUE)))) -> 
F199: =IF(E199="","",IF(E199<-2,0,IF(E199>1,0,VLOOKUP(E199,'8'!$A$2:$B$1503,2,TRUE)))) -> 
F200: =IF(E200="","",IF(E200<-2,0,IF(E200>1,0,VLOOKUP(E200,'8'!$A$2:$B$1503,2,TRUE)))) -> 
... 201 more rows

Sheet 5
A1: Q | B1: A | C1: Decision Tree for Interpolation | Q1: Q | R1: A | S1: Decision Tree for Interpolation
A2: 1 | B2: ='3'!B9 -> yes | C2: Was the model validated for dependent data? | Q2: 1 | R2: yes | S2: Was the model validated for dependent data?
A3: 2 | B3: yes | C3: Were the data independent? | Q3: 2 | R3: yes | S3: Were the data independent?
A4: 3 | B4: yes | C4: Were the data collected using the same methods as dependent data? | Q4: 3 | R4: yes | S4: Were the data collected using the same methods as dependent data?
A5: 4 | B5: yes | C5: Were the independent variables at values intermediate to those used in model development? | Q5: 4 | R5: yes | S5: Were the independent variables at values intermediate to those used in model development?
A6: 5 | B6: yes | C6: Was there a minimum of two prediction cases per combination of independent variables? | Q6: 5 | R6: yes | S6: Was there a minimum of two prediction cases per combination of independent variables?
A7: 6 | B7: yes | C7: Did all combinations of independent variables have the same number of prediction cases? | Q7: 6 | R7: yes | S7: Did all combinations of independent variables have the same number of prediction cases?
A8: 7 | B8: yes | C8: Was the overall pAPZ ≥ 0.70? | Q8: 7 | R8: yes | S8: Was the overall pAPZ ≥ 0.70?
A9: 8 | B9: yes | C9: Was pAPZ for all individual levels of independent variables ≥ 0.70? | Q9: 8 | R9: yes | S9: Was pAPZ for all individual levels of independent variables ≥ 0.70?
A10: 9 | B10: yes | C10: Was a single pAPZ ≥ 0.70 for every three consecutive combinations of the independent variables? | Q10: 9 | R10: yes | S10: Was a single pAPZ ≥ 0.70 for every three consecutive combinations of the independent variables?
A11: 10 | B11: =IF(CONCATENATE(B2,B3,B4,B5,B6,B7,B8,B10)="yesyesyesyesyesyesyesyes","yes","no") -> yes | C11: Was the model validated for interpolation? | Q11: 10 | R11: yes | S11: Was the model validated for interpolation?
A12: Average of APZ | B12: Time | Q12: pAPZ | R12: Time
A13: Temp | B13: 1 | C13: 3 | D13: 5 | E13: 7 | F13: Average | Q13: Temp | R13: 1 | S13: 3 | T13: 5 | U13: 7 | V13: Average
A14: 18 | B14: 1 | C14: 1 | D14: 1 | E14: 0.9973333333 | F14: 0.9993333333 | Q14: 18 | R14: 1 | S14: 1 | T14: 1 | U14: 0.9973333333 | V14: 0.9993333333
A15: 22 | B15: 1 | C15: 1 | D15: 0.942 | E15: 1 | F15: 0.9855 | Q15: 22 | R15: 1 | S15: 1 | T15: 0.942 | U15: 1 | V15: 0.9855
A16: 26 | B16: 1 | C16: 1 | D16: 0.9213333333 | E16: 0.998 | F16: 0.9798333333 | Q16: 26 | R16: 1 | S16: 1 | T16: 0.9213333333 | U16: 0.998 | V16: 0.9798333333
A17: 30 | B17: 1 | C17: 1 | D17: 1 | E17: 0.9066666667 | F17: 0.9766666667 | Q17: 30 | R17: 1 | S17: 1 | T17: 1 | U17: 0.9066666667 | V17: 0.9766666667
A18: 34 | B18: 1 | C18: 0.77 | D18: 0.8433333333 | E18: 0.6936666667 | F18: 0.82675 | Q18: 34 | R18: 1 | S18: 0.77 | T18: 0.8433333333 | U18: 0.6936666667 | V18: 0.82675
A19: 38 | B19: 1 | C19: 0.674 | D19: 0.6666666667 | E19: 1 | F19: 0.8351666667 | Q19: 38 | R19: 1 | S19: 0.674 | T19: 0.6666666667 | U19: 1 | V19: 0.8351666667
A20: Average | B20: 1 | C20: 0.9073333333 | D20: 0.8955555556 | E20: 0.9326111111 | F20: 0.933875 | Q20: Average | R20: 1 | S20: 0.9073333333 | T20: 0.8955555556 | U20: 0.9326111111 | V20: 0.933875
A24: Instructions
A25: 1. Copy and paste values for independent variables (temperature and time) and dependent variables (observed and predicted values) into the input cells (A2:D401) in spreadsheet 4 (4!).
A26: 2. Update the pivot table (5!P1).
B27: a. Click on 5!P1 → Analyze → Refresh or (Alt + F5) → Filter for Rows → Select All → Deselect Blank → Filter for Columns → Select All → Deselect Blank.
B28: b. Click Field List, Σ Values Pull Down Menu → Value Field Settings → Select Count.
A29: 3. Answer (A) questions (Q) 2 to 6 for test data criteria in the Decision Tree by selecting "yes" or "no" from the pull down menu.
A30: 4. Change Σ Value from Count to Average
B31: a. Click Field List, Σ Values Pull Down Menu → Value Field Settings → Select Average.
B32: b. Click on any pAPZ value in the pivot table and then click on APZ Macro button to highlight pAPZ that are < 0.7.
A33: 5. Answer (A) questions (Q) 7 to 9 for model performance criteria in the Decision Tree by selecting "yes" or "no" from the pull down menu.

Sheet 6
A1: Temp | B1: Time | C1: Observed | D1: Predicted | E1: Residual | F1: APZ
E2: =IF(C2="","",IF(C2*D2<0,-2.5,C2-D2)) ->  | F2: =IF(E2="","",IF(E2<-2,0,IF(E2>1,0,VLOOKUP(E2,'8'!$A$2:$B$1503,2,TRUE)))) -> 
E3: =IF(C3="","",IF(C3*D3<0,-2.5,C3-D3)) ->  | F3: =IF(E3="","",IF(E3<-2,0,IF(E3>1,0,VLOOKUP(E3,'8'!$A$2:$B$1503,2,TRUE)))) -> 
F4: =IF(E4="","",IF(E4<-2,0,IF(E4>1,0,VLOOKUP(E4,'8'!$A$2:$B$1503,2,TRUE)))) -> 
F5: =IF(E5="","",IF(E5<-2,0,IF(E5>1,0,VLOOKUP(E5,'8'!$A$2:$B$1503,2,TRUE)))) -> 
F6: =IF(E6="","",IF(E6<-2,0,IF(E6>1,0,VLOOKUP(E6,'8'!$A$2:$B$1503,2,TRUE)))) -> 
F7: =IF(E7="","",IF(E7<-2,0,IF(E7>1,0,VLOOKUP(E7,'8'!$A$2:$B$1503,2,TRUE)))) -> 
F8: =IF(E8="","",IF(E8<-2,0,IF(E8>1,0,VLOOKUP(E8,'8'!$A$2:$B$1503,2,TRUE)))) -> 
F9: =IF(E9="","",IF(E9<-2,0,IF(E9>1,0,VLOOKUP(E9,'8'!$A$2:$B$1503,2,TRUE)))) -> 
F10: =IF(E10="","",IF(E10<-2,0,IF(E10>1,0,VLOOKUP(E10,'8'!$A$2:$B$1503,2,TRUE)))) -> 
F11: =IF(E11="","",IF(E11<-2,0,IF(E11>1,0,VLOOKUP(E11,'8'!$A$2:$B$1503,2,TRUE)))) -> 
F12: =IF(E12="","",IF(E12<-2,0,IF(E12>1,0,VLOOKUP(E12,'8'!$A$2:$B$1503,2,TRUE)))) -> 
F13: =IF(E13="","",IF(E13<-2,0,IF(E13>1,0,VLOOKUP(E13,'8'!$A$2:$B$1503,2,TRUE)))) -> 
F14: =IF(E14="","",IF(E14<-2,0,IF(E14>1,0,VLOOKUP(E14,'8'!$A$2:$B$1503,2,TRUE)))) -> 
F15: =IF(E15="","",IF(E15<-2,0,IF(E15>1,0,VLOOKUP(E15,'8'!$A$2:$B$1503,2,TRUE)))) -> 
F16: =IF(E16="","",IF(E16<-2,0,IF(E16>1,0,VLOOKUP(E16,'8'!$A$2:$B$1503,2,TRUE)))) -> 
F17: =IF(E17="","",IF(E17<-2,0,IF(E17>1,0,VLOOKUP(E17,'8'!$A$2:$B$1503,2,TRUE)))) -> 
F18: =IF(E18="","",IF(E18<-2,0,IF(E18>1,0,VLOOKUP(E18,'8'!$A$2:$B$1503,2,TRUE)))) -> 
F19: =IF(E19="","",IF(E19<-2,0,IF(E19>1,0,VLOOKUP(E19,'8'!$A$2:$B$1503,2,TRUE)))) -> 
F20: =IF(E20="","",IF(E20<-2,0,IF(E20>1,0,VLOOKUP(E20,'8'!$A$2:$B$1503,2,TRUE)))) -> 
F21: =IF(E21="","",IF(E21<-2,0,IF(E21>1,0,VLOOKUP(E21,'8'!$A$2:$B$1503,2,TRUE)))) -> 
F22: =IF(E22="","",IF(E22<-2,0,IF(E22>1,0,VLOOKUP(E22,'8'!$A$2:$B$1503,2,TRUE)))) -> 
F23: =IF(E23="","",IF(E23<-2,0,IF(E23>1,0,VLOOKUP(E23,'8'!$A$2:$B$1503,2,TRUE)))) -> 
F24: =IF(E24="","",IF(E24<-2,0,IF(E24>1,0,VLOOKUP(E24,'8'!$A$2:$B$1503,2,TRUE)))) -> 
F25: =IF(E25="","",IF(E25<-2,0,IF(E25>1,0,VLOOKUP(E25,'8'!$A$2:$B$1503,2,TRUE)))) -> 
F26: =IF(E26="","",IF(E26<-2,0,IF(E26>1,0,VLOOKUP(E26,'8'!$A$2:$B$1503,2,TRUE)))) -> 
F27: =IF(E27="","",IF(E27<-2,0,IF(E27>1,0,VLOOKUP(E27,'8'!$A$2:$B$1503,2,TRUE)))) -> 
F28: =IF(E28="","",IF(E28<-2,0,IF(E28>1,0,VLOOKUP(E28,'8'!$A$2:$B$1503,2,TRUE)))) -> 
F29: =IF(E29="","",IF(E29<-2,0,IF(E29>1,0,VLOOKUP(E29,'8'!$A$2:$B$1503,2,TRUE)))) -> 
F30: =IF(E30="","",IF(E30<-2,0,IF(E30>1,0,VLOOKUP(E30,'8'!$A$2:$B$1503,2,TRUE)))) -> 
F31: =IF(E31="","",IF(E31<-2,0,IF(E31>1,0,VLOOKUP(E31,'8'!$A$2:$B$1503,2,TRUE)))) -> 
F32: =IF(E32="","",IF(E32<-2,0,IF(E32>1,0,VLOOKUP(E32,'8'!$A$2:$B$1503,2,TRUE)))) -> 
F33: =IF(E33="","",IF(E33<-2,0,IF(E33>1,0,VLOOKUP(E33,'8'!$A$2:$B$1503,2,TRUE)))) -> 
F34: =IF(E34="","",IF(E34<-2,0,IF(E34>1,0,VLOOKUP(E34,'8'!$A$2:$B$1503,2,TRUE)))) -> 
F35: =IF(E35="","",IF(E35<-2,0,IF(E35>1,0,VLOOKUP(E35,'8'!$A$2:$B$1503,2,TRUE)))) -> 
F36: =IF(E36="","",IF(E36<-2,0,IF(E36>1,0,VLOOKUP(E36,'8'!$A$2:$B$1503,2,TRUE)))) -> 
F37: =IF(E37="","",IF(E37<-2,0,IF(E37>1,0,VLOOKUP(E37,'8'!$A$2:$B$1503,2,TRUE)))) -> 
F38: =IF(E38="","",IF(E38<-2,0,IF(E38>1,0,VLOOKUP(E38,'8'!$A$2:$B$1503,2,TRUE)))) -> 
F39: =IF(E39="","",IF(E39<-2,0,IF(E39>1,0,VLOOKUP(E39,'8'!$A$2:$B$1503,2,TRUE)))) -> 
F40: =IF(E40="","",IF(E40<-2,0,IF(E40>1,0,VLOOKUP(E40,'8'!$A$2:$B$1503,2,TRUE)))) -> 
F41: =IF(E41="","",IF(E41<-2,0,IF(E41>1,0,VLOOKUP(E41,'8'!$A$2:$B$1503,2,TRUE)))) -> 
F42: =IF(E42="","",IF(E42<-2,0,IF(E42>1,0,VLOOKUP(E42,'8'!$A$2:$B$1503,2,TRUE)))) -> 
F43: =IF(E43="","",IF(E43<-2,0,IF(E43>1,0,VLOOKUP(E43,'8'!$A$2:$B$1503,2,TRUE)))) -> 
F44: =IF(E44="","",IF(E44<-2,0,IF(E44>1,0,VLOOKUP(E44,'8'!$A$2:$B$1503,2,TRUE)))) -> 
F45: =IF(E45="","",IF(E45<-2,0,IF(E45>1,0,VLOOKUP(E45,'8'!$A$2:$B$1503,2,TRUE)))) -> 
F46: =IF(E46="","",IF(E46<-2,0,IF(E46>1,0,VLOOKUP(E46,'8'!$A$2:$B$1503,2,TRUE)))) -> 
F47: =IF(E47="","",IF(E47<-2,0,IF(E47>1,0,VLOOKUP(E47,'8'!$A$2:$B$1503,2,TRUE)))) -> 
F48: =IF(E48="","",IF(E48<-2,0,IF(E48>1,0,VLOOKUP(E48,'8'!$A$2:$B$1503,2,TRUE)))) -> 
F49: =IF(E49="","",IF(E49<-2,0,IF(E49>1,0,VLOOKUP(E49,'8'!$A$2:$B$1503,2,TRUE)))) -> 
F50: =IF(E50="","",IF(E50<-2,0,IF(E50>1,0,VLOOKUP(E50,'8'!$A$2:$B$1503,2,TRUE)))) -> 
F51: =IF(E51="","",IF(E51<-2,0,IF(E51>1,0,VLOOKUP(E51,'8'!$A$2:$B$1503,2,TRUE)))) -> 
F52: =IF(E52="","",IF(E52<-2,0,IF(E52>1,0,VLOOKUP(E52,'8'!$A$2:$B$1503,2,TRUE)))) -> 
F53: =IF(E53="","",IF(E53<-2,0,IF(E53>1,0,VLOOKUP(E53,'8'!$A$2:$B$1503,2,TRUE)))) -> 
F54: =IF(E54="","",IF(E54<-2,0,IF(E54>1,0,VLOOKUP(E54,'8'!$A$2:$B$1503,2,TRUE)))) -> 
F55: =IF(E55="","",IF(E55<-2,0,IF(E55>1,0,VLOOKUP(E55,'8'!$A$2:$B$1503,2,TRUE)))) -> 
F56: =IF(E56="","",IF(E56<-2,0,IF(E56>1,0,VLOOKUP(E56,'8'!$A$2:$B$1503,2,TRUE)))) -> 
F57: =IF(E57="","",IF(E57<-2,0,IF(E57>1,0,VLOOKUP(E57,'8'!$A$2:$B$1503,2,TRUE)))) -> 
F58: =IF(E58="","",IF(E58<-2,0,IF(E58>1,0,VLOOKUP(E58,'8'!$A$2:$B$1503,2,TRUE)))) -> 
F59: =IF(E59="","",IF(E59<-2,0,IF(E59>1,0,VLOOKUP(E59,'8'!$A$2:$B$1503,2,TRUE)))) -> 
F60: =IF(E60="","",IF(E60<-2,0,IF(E60>1,0,VLOOKUP(E60,'8'!$A$2:$B$1503,2,TRUE)))) -> 
F61: =IF(E61="","",IF(E61<-2,0,IF(E61>1,0,VLOOKUP(E61,'8'!$A$2:$B$1503,2,TRUE)))) -> 
F62: =IF(E62="","",IF(E62<-2,0,IF(E62>1,0,VLOOKUP(E62,'8'!$A$2:$B$1503,2,TRUE)))) -> 
F63: =IF(E63="","",IF(E63<-2,0,IF(E63>1,0,VLOOKUP(E63,'8'!$A$2:$B$1503,2,TRUE)))) -> 
F64: =IF(E64="","",IF(E64<-2,0,IF(E64>1,0,VLOOKUP(E64,'8'!$A$2:$B$1503,2,TRUE)))) -> 
F65: =IF(E65="","",IF(E65<-2,0,IF(E65>1,0,VLOOKUP(E65,'8'!$A$2:$B$1503,2,TRUE)))) -> 
F66: =IF(E66="","",IF(E66<-2,0,IF(E66>1,0,VLOOKUP(E66,'8'!$A$2:$B$1503,2,TRUE)))) -> 
E67: =IF(C67="","",IF(C67*D67<0,-2.5,C67-D67)) ->  | F67: =IF(E67="","",IF(E67<-2,0,IF(E67>1,0,VLOOKUP(E67,'8'!$A$2:$B$1503,2,TRUE)))) -> 
F68: =IF(E68="","",IF(E68<-2,0,IF(E68>1,0,VLOOKUP(E68,'8'!$A$2:$B$1503,2,TRUE)))) -> 
F69: =IF(E69="","",IF(E69<-2,0,IF(E69>1,0,VLOOKUP(E69,'8'!$A$2:$B$1503,2,TRUE)))) -> 
F70: =IF(E70="","",IF(E70<-2,0,IF(E70>1,0,VLOOKUP(E70,'8'!$A$2:$B$1503,2,TRUE)))) -> 
F71: =IF(E71="","",IF(E71<-2,0,IF(E71>1,0,VLOOKUP(E71,'8'!$A$2:$B$1503,2,TRUE)))) -> 
F72: =IF(E72="","",IF(E72<-2,0,IF(E72>1,0,VLOOKUP(E72,'8'!$A$2:$B$1503,2,TRUE)))) -> 
F73: =IF(E73="","",IF(E73<-2,0,IF(E73>1,0,VLOOKUP(E73,'8'!$A$2:$B$1503,2,TRUE)))) -> 
F74: =IF(E74="","",IF(E74<-2,0,IF(E74>1,0,VLOOKUP(E74,'8'!$A$2:$B$1503,2,TRUE)))) -> 
F75: =IF(E75="","",IF(E75<-2,0,IF(E75>1,0,VLOOKUP(E75,'8'!$A$2:$B$1503,2,TRUE)))) -> 
F76: =IF(E76="","",IF(E76<-2,0,IF(E76>1,0,VLOOKUP(E76,'8'!$A$2:$B$1503,2,TRUE)))) -> 
F77: =IF(E77="","",IF(E77<-2,0,IF(E77>1,0,VLOOKUP(E77,'8'!$A$2:$B$1503,2,TRUE)))) -> 
F78: =IF(E78="","",IF(E78<-2,0,IF(E78>1,0,VLOOKUP(E78,'8'!$A$2:$B$1503,2,TRUE)))) -> 
F79: =IF(E79="","",IF(E79<-2,0,IF(E79>1,0,VLOOKUP(E79,'8'!$A$2:$B$1503,2,TRUE)))) -> 
F80: =IF(E80="","",IF(E80<-2,0,IF(E80>1,0,VLOOKUP(E80,'8'!$A$2:$B$1503,2,TRUE)))) -> 
F81: =IF(E81="","",IF(E81<-2,0,IF(E81>1,0,VLOOKUP(E81,'8'!$A$2:$B$1503,2,TRUE)))) -> 
F82: =IF(E82="","",IF(E82<-2,0,IF(E82>1,0,VLOOKUP(E82,'8'!$A$2:$B$1503,2,TRUE)))) -> 
F83: =IF(E83="","",IF(E83<-2,0,IF(E83>1,0,VLOOKUP(E83,'8'!$A$2:$B$1503,2,TRUE)))) -> 
F84: =IF(E84="","",IF(E84<-2,0,IF(E84>1,0,VLOOKUP(E84,'8'!$A$2:$B$1503,2,TRUE)))) -> 
F85: =IF(E85="","",IF(E85<-2,0,IF(E85>1,0,VLOOKUP(E85,'8'!$A$2:$B$1503,2,TRUE)))) -> 
F86: =IF(E86="","",IF(E86<-2,0,IF(E86>1,0,VLOOKUP(E86,'8'!$A$2:$B$1503,2,TRUE)))) -> 
F87: =IF(E87="","",IF(E87<-2,0,IF(E87>1,0,VLOOKUP(E87,'8'!$A$2:$B$1503,2,TRUE)))) -> 
F88: =IF(E88="","",IF(E88<-2,0,IF(E88>1,0,VLOOKUP(E88,'8'!$A$2:$B$1503,2,TRUE)))) -> 
F89: =IF(E89="","",IF(E89<-2,0,IF(E89>1,0,VLOOKUP(E89,'8'!$A$2:$B$1503,2,TRUE)))) -> 
F90: =IF(E90="","",IF(E90<-2,0,IF(E90>1,0,VLOOKUP(E90,'8'!$A$2:$B$1503,2,TRUE)))) -> 
F91: =IF(E91="","",IF(E91<-2,0,IF(E91>1,0,VLOOKUP(E91,'8'!$A$2:$B$1503,2,TRUE)))) -> 
F92: =IF(E92="","",IF(E92<-2,0,IF(E92>1,0,VLOOKUP(E92,'8'!$A$2:$B$1503,2,TRUE)))) -> 
F93: =IF(E93="","",IF(E93<-2,0,IF(E93>1,0,VLOOKUP(E93,'8'!$A$2:$B$1503,2,TRUE)))) -> 
F94: =IF(E94="","",IF(E94<-2,0,IF(E94>1,0,VLOOKUP(E94,'8'!$A$2:$B$1503,2,TRUE)))) -> 
F95: =IF(E95="","",IF(E95<-2,0,IF(E95>1,0,VLOOKUP(E95,'8'!$A$2:$B$1503,2,TRUE)))) -> 
F96: =IF(E96="","",IF(E96<-2,0,IF(E96>1,0,VLOOKUP(E96,'8'!$A$2:$B$1503,2,TRUE)))) -> 
F97: =IF(E97="","",IF(E97<-2,0,IF(E97>1,0,VLOOKUP(E97,'8'!$A$2:$B$1503,2,TRUE)))) -> 
F98: =IF(E98="","",IF(E98<-2,0,IF(E98>1,0,VLOOKUP(E98,'8'!$A$2:$B$1503,2,TRUE)))) -> 
F99: =IF(E99="","",IF(E99<-2,0,IF(E99>1,0,VLOOKUP(E99,'8'!$A$2:$B$1503,2,TRUE)))) -> 
F100: =IF(E100="","",IF(E100<-2,0,IF(E100>1,0,VLOOKUP(E100,'8'!$A$2:$B$1503,2,TRUE)))) -> 
F101: =IF(E101="","",IF(E101<-2,0,IF(E101>1,0,VLOOKUP(E101,'8'!$A$2:$B$1503,2,TRUE)))) -> 
F102: =IF(E102="","",IF(E102<-2,0,IF(E102>1,0,VLOOKUP(E102,'8'!$A$2:$B$1503,2,TRUE)))) -> 
F103: =IF(E103="","",IF(E103<-2,0,IF(E103>1,0,VLOOKUP(E103,'8'!$A$2:$B$1503,2,TRUE)))) -> 
F104: =IF(E104="","",IF(E104<-2,0,IF(E104>1,0,VLOOKUP(E104,'8'!$A$2:$B$1503,2,TRUE)))) -> 
F105: =IF(E105="","",IF(E105<-2,0,IF(E105>1,0,VLOOKUP(E105,'8'!$A$2:$B$1503,2,TRUE)))) -> 
F106: =IF(E106="","",IF(E106<-2,0,IF(E106>1,0,VLOOKUP(E106,'8'!$A$2:$B$1503,2,TRUE)))) -> 
F107: =IF(E107="","",IF(E107<-2,0,IF(E107>1,0,VLOOKUP(E107,'8'!$A$2:$B$1503,2,TRUE)))) -> 
F108: =IF(E108="","",IF(E108<-2,0,IF(E108>1,0,VLOOKUP(E108,'8'!$A$2:$B$1503,2,TRUE)))) -> 
F109: =IF(E109="","",IF(E109<-2,0,IF(E109>1,0,VLOOKUP(E109,'8'!$A$2:$B$1503,2,TRUE)))) -> 
F110: =IF(E110="","",IF(E110<-2,0,IF(E110>1,0,VLOOKUP(E110,'8'!$A$2:$B$1503,2,TRUE)))) -> 
F111: =IF(E111="","",IF(E111<-2,0,IF(E111>1,0,VLOOKUP(E111,'8'!$A$2:$B$1503,2,TRUE)))) -> 
F112: =IF(E112="","",IF(E112<-2,0,IF(E112>1,0,VLOOKUP(E112,'8'!$A$2:$B$1503,2,TRUE)))) -> 
F113: =IF(E113="","",IF(E113<-2,0,IF(E113>1,0,VLOOKUP(E113,'8'!$A$2:$B$1503,2,TRUE)))) -> 
F114: =IF(E114="","",IF(E114<-2,0,IF(E114>1,0,VLOOKUP(E114,'8'!$A$2:$B$1503,2,TRUE)))) -> 
F115: =IF(E115="","",IF(E115<-2,0,IF(E115>1,0,VLOOKUP(E115,'8'!$A$2:$B$1503,2,TRUE)))) -> 
F116: =IF(E116="","",IF(E116<-2,0,IF(E116>1,0,VLOOKUP(E116,'8'!$A$2:$B$1503,2,TRUE)))) -> 
F117: =IF(E117="","",IF(E117<-2,0,IF(E117>1,0,VLOOKUP(E117,'8'!$A$2:$B$1503,2,TRUE)))) -> 
F118: =IF(E118="","",IF(E118<-2,0,IF(E118>1,0,VLOOKUP(E118,'8'!$A$2:$B$1503,2,TRUE)))) -> 
F119: =IF(E119="","",IF(E119<-2,0,IF(E119>1,0,VLOOKUP(E119,'8'!$A$2:$B$1503,2,TRUE)))) -> 
F120: =IF(E120="","",IF(E120<-2,0,IF(E120>1,0,VLOOKUP(E120,'8'!$A$2:$B$1503,2,TRUE)))) -> 
F121: =IF(E121="","",IF(E121<-2,0,IF(E121>1,0,VLOOKUP(E121,'8'!$A$2:$B$1503,2,TRUE)))) -> 
F122: =IF(E122="","",IF(E122<-2,0,IF(E122>1,0,VLOOKUP(E122,'8'!$A$2:$B$1503,2,TRUE)))) -> 
F123: =IF(E123="","",IF(E123<-2,0,IF(E123>1,0,VLOOKUP(E123,'8'!$A$2:$B$1503,2,TRUE)))) -> 
F124: =IF(E124="","",IF(E124<-2,0,IF(E124>1,0,VLOOKUP(E124,'8'!$A$2:$B$1503,2,TRUE)))) -> 
F125: =IF(E125="","",IF(E125<-2,0,IF(E125>1,0,VLOOKUP(E125,'8'!$A$2:$B$1503,2,TRUE)))) -> 
F126: =IF(E126="","",IF(E126<-2,0,IF(E126>1,0,VLOOKUP(E126,'8'!$A$2:$B$1503,2,TRUE)))) -> 
F127: =IF(E127="","",IF(E127<-2,0,IF(E127>1,0,VLOOKUP(E127,'8'!$A$2:$B$1503,2,TRUE)))) -> 
F128: =IF(E128="","",IF(E128<-2,0,IF(E128>1,0,VLOOKUP(E128,'8'!$A$2:$B$1503,2,TRUE)))) -> 
F129: =IF(E129="","",IF(E129<-2,0,IF(E129>1,0,VLOOKUP(E129,'8'!$A$2:$B$1503,2,TRUE)))) -> 
F130: =IF(E130="","",IF(E130<-2,0,IF(E130>1,0,VLOOKUP(E130,'8'!$A$2:$B$1503,2,TRUE)))) -> 
E131: =IF(C131="","",IF(C131*D131<0,-2.5,C131-D131)) ->  | F131: =IF(E131="","",IF(E131<-2,0,IF(E131>1,0,VLOOKUP(E131,'8'!$A$2:$B$1503,2,TRUE)))) -> 
F132: =IF(E132="","",IF(E132<-2,0,IF(E132>1,0,VLOOKUP(E132,'8'!$A$2:$B$1503,2,TRUE)))) -> 
F133: =IF(E133="","",IF(E133<-2,0,IF(E133>1,0,VLOOKUP(E133,'8'!$A$2:$B$1503,2,TRUE)))) -> 
F134: =IF(E134="","",IF(E134<-2,0,IF(E134>1,0,VLOOKUP(E134,'8'!$A$2:$B$1503,2,TRUE)))) -> 
F135: =IF(E135="","",IF(E135<-2,0,IF(E135>1,0,VLOOKUP(E135,'8'!$A$2:$B$1503,2,TRUE)))) -> 
F136: =IF(E136="","",IF(E136<-2,0,IF(E136>1,0,VLOOKUP(E136,'8'!$A$2:$B$1503,2,TRUE)))) -> 
F137: =IF(E137="","",IF(E137<-2,0,IF(E137>1,0,VLOOKUP(E137,'8'!$A$2:$B$1503,2,TRUE)))) -> 
F138: =IF(E138="","",IF(E138<-2,0,IF(E138>1,0,VLOOKUP(E138,'8'!$A$2:$B$1503,2,TRUE)))) -> 
F139: =IF(E139="","",IF(E139<-2,0,IF(E139>1,0,VLOOKUP(E139,'8'!$A$2:$B$1503,2,TRUE)))) -> 
F140: =IF(E140="","",IF(E140<-2,0,IF(E140>1,0,VLOOKUP(E140,'8'!$A$2:$B$1503,2,TRUE)))) -> 
F141: =IF(E141="","",IF(E141<-2,0,IF(E141>1,0,VLOOKUP(E141,'8'!$A$2:$B$1503,2,TRUE)))) -> 
F142: =IF(E142="","",IF(E142<-2,0,IF(E142>1,0,VLOOKUP(E142,'8'!$A$2:$B$1503,2,TRUE)))) -> 
F143: =IF(E143="","",IF(E143<-2,0,IF(E143>1,0,VLOOKUP(E143,'8'!$A$2:$B$1503,2,TRUE)))) -> 
F144: =IF(E144="","",IF(E144<-2,0,IF(E144>1,0,VLOOKUP(E144,'8'!$A$2:$B$1503,2,TRUE)))) -> 
F145: =IF(E145="","",IF(E145<-2,0,IF(E145>1,0,VLOOKUP(E145,'8'!$A$2:$B$1503,2,TRUE)))) -> 
F146: =IF(E146="","",IF(E146<-2,0,IF(E146>1,0,VLOOKUP(E146,'8'!$A$2:$B$1503,2,TRUE)))) -> 
F147: =IF(E147="","",IF(E147<-2,0,IF(E147>1,0,VLOOKUP(E147,'8'!$A$2:$B$1503,2,TRUE)))) -> 
F148: =IF(E148="","",IF(E148<-2,0,IF(E148>1,0,VLOOKUP(E148,'8'!$A$2:$B$1503,2,TRUE)))) -> 
F149: =IF(E149="","",IF(E149<-2,0,IF(E149>1,0,VLOOKUP(E149,'8'!$A$2:$B$1503,2,TRUE)))) -> 
F150: =IF(E150="","",IF(E150<-2,0,IF(E150>1,0,VLOOKUP(E150,'8'!$A$2:$B$1503,2,TRUE)))) -> 
F151: =IF(E151="","",IF(E151<-2,0,IF(E151>1,0,VLOOKUP(E151,'8'!$A$2:$B$1503,2,TRUE)))) -> 
F152: =IF(E152="","",IF(E152<-2,0,IF(E152>1,0,VLOOKUP(E152,'8'!$A$2:$B$1503,2,TRUE)))) -> 
F153: =IF(E153="","",IF(E153<-2,0,IF(E153>1,0,VLOOKUP(E153,'8'!$A$2:$B$1503,2,TRUE)))) -> 
F154: =IF(E154="","",IF(E154<-2,0,IF(E154>1,0,VLOOKUP(E154,'8'!$A$2:$B$1503,2,TRUE)))) -> 
F155: =IF(E155="","",IF(E155<-2,0,IF(E155>1,0,VLOOKUP(E155,'8'!$A$2:$B$1503,2,TRUE)))) -> 
F156: =IF(E156="","",IF(E156<-2,0,IF(E156>1,0,VLOOKUP(E156,'8'!$A$2:$B$1503,2,TRUE)))) -> 
F157: =IF(E157="","",IF(E157<-2,0,IF(E157>1,0,VLOOKUP(E157,'8'!$A$2:$B$1503,2,TRUE)))) -> 
F158: =IF(E158="","",IF(E158<-2,0,IF(E158>1,0,VLOOKUP(E158,'8'!$A$2:$B$1503,2,TRUE)))) -> 
F159: =IF(E159="","",IF(E159<-2,0,IF(E159>1,0,VLOOKUP(E159,'8'!$A$2:$B$1503,2,TRUE)))) -> 
F160: =IF(E160="","",IF(E160<-2,0,IF(E160>1,0,VLOOKUP(E160,'8'!$A$2:$B$1503,2,TRUE)))) -> 
F161: =IF(E161="","",IF(E161<-2,0,IF(E161>1,0,VLOOKUP(E161,'8'!$A$2:$B$1503,2,TRUE)))) -> 
F162: =IF(E162="","",IF(E162<-2,0,IF(E162>1,0,VLOOKUP(E162,'8'!$A$2:$B$1503,2,TRUE)))) -> 
F163: =IF(E163="","",IF(E163<-2,0,IF(E163>1,0,VLOOKUP(E163,'8'!$A$2:$B$1503,2,TRUE)))) -> 
F164: =IF(E164="","",IF(E164<-2,0,IF(E164>1,0,VLOOKUP(E164,'8'!$A$2:$B$1503,2,TRUE)))) -> 
F165: =IF(E165="","",IF(E165<-2,0,IF(E165>1,0,VLOOKUP(E165,'8'!$A$2:$B$1503,2,TRUE)))) -> 
F166: =IF(E166="","",IF(E166<-2,0,IF(E166>1,0,VLOOKUP(E166,'8'!$A$2:$B$1503,2,TRUE)))) -> 
F167: =IF(E167="","",IF(E167<-2,0,IF(E167>1,0,VLOOKUP(E167,'8'!$A$2:$B$1503,2,TRUE)))) -> 
F168: =IF(E168="","",IF(E168<-2,0,IF(E168>1,0,VLOOKUP(E168,'8'!$A$2:$B$1503,2,TRUE)))) -> 
F169: =IF(E169="","",IF(E169<-2,0,IF(E169>1,0,VLOOKUP(E169,'8'!$A$2:$B$1503,2,TRUE)))) -> 
F170: =IF(E170="","",IF(E170<-2,0,IF(E170>1,0,VLOOKUP(E170,'8'!$A$2:$B$1503,2,TRUE)))) -> 
F171: =IF(E171="","",IF(E171<-2,0,IF(E171>1,0,VLOOKUP(E171,'8'!$A$2:$B$1503,2,TRUE)))) -> 
F172: =IF(E172="","",IF(E172<-2,0,IF(E172>1,0,VLOOKUP(E172,'8'!$A$2:$B$1503,2,TRUE)))) -> 
F173: =IF(E173="","",IF(E173<-2,0,IF(E173>1,0,VLOOKUP(E173,'8'!$A$2:$B$1503,2,TRUE)))) -> 
F174: =IF(E174="","",IF(E174<-2,0,IF(E174>1,0,VLOOKUP(E174,'8'!$A$2:$B$1503,2,TRUE)))) -> 
F175: =IF(E175="","",IF(E175<-2,0,IF(E175>1,0,VLOOKUP(E175,'8'!$A$2:$B$1503,2,TRUE)))) -> 
F176: =IF(E176="","",IF(E176<-2,0,IF(E176>1,0,VLOOKUP(E176,'8'!$A$2:$B$1503,2,TRUE)))) -> 
F177: =IF(E177="","",IF(E177<-2,0,IF(E177>1,0,VLOOKUP(E177,'8'!$A$2:$B$1503,2,TRUE)))) -> 
F178: =IF(E178="","",IF(E178<-2,0,IF(E178>1,0,VLOOKUP(E178,'8'!$A$2:$B$1503,2,TRUE)))) -> 
F179: =IF(E179="","",IF(E179<-2,0,IF(E179>1,0,VLOOKUP(E179,'8'!$A$2:$B$1503,2,TRUE)))) -> 
F180: =IF(E180="","",IF(E180<-2,0,IF(E180>1,0,VLOOKUP(E180,'8'!$A$2:$B$1503,2,TRUE)))) -> 
F181: =IF(E181="","",IF(E181<-2,0,IF(E181>1,0,VLOOKUP(E181,'8'!$A$2:$B$1503,2,TRUE)))) -> 
F182: =IF(E182="","",IF(E182<-2,0,IF(E182>1,0,VLOOKUP(E182,'8'!$A$2:$B$1503,2,TRUE)))) -> 
F183: =IF(E183="","",IF(E183<-2,0,IF(E183>1,0,VLOOKUP(E183,'8'!$A$2:$B$1503,2,TRUE)))) -> 
F184: =IF(E184="","",IF(E184<-2,0,IF(E184>1,0,VLOOKUP(E184,'8'!$A$2:$B$1503,2,TRUE)))) -> 
F185: =IF(E185="","",IF(E185<-2,0,IF(E185>1,0,VLOOKUP(E185,'8'!$A$2:$B$1503,2,TRUE)))) -> 
F186: =IF(E186="","",IF(E186<-2,0,IF(E186>1,0,VLOOKUP(E186,'8'!$A$2:$B$1503,2,TRUE)))) -> 
F187: =IF(E187="","",IF(E187<-2,0,IF(E187>1,0,VLOOKUP(E187,'8'!$A$2:$B$1503,2,TRUE)))) -> 
F188: =IF(E188="","",IF(E188<-2,0,IF(E188>1,0,VLOOKUP(E188,'8'!$A$2:$B$1503,2,TRUE)))) -> 
F189: =IF(E189="","",IF(E189<-2,0,IF(E189>1,0,VLOOKUP(E189,'8'!$A$2:$B$1503,2,TRUE)))) -> 
F190: =IF(E190="","",IF(E190<-2,0,IF(E190>1,0,VLOOKUP(E190,'8'!$A$2:$B$1503,2,TRUE)))) -> 
F191: =IF(E191="","",IF(E191<-2,0,IF(E191>1,0,VLOOKUP(E191,'8'!$A$2:$B$1503,2,TRUE)))) -> 
F192: =IF(E192="","",IF(E192<-2,0,IF(E192>1,0,VLOOKUP(E192,'8'!$A$2:$B$1503,2,TRUE)))) -> 
F193: =IF(E193="","",IF(E193<-2,0,IF(E193>1,0,VLOOKUP(E193,'8'!$A$2:$B$1503,2,TRUE)))) -> 
F194: =IF(E194="","",IF(E194<-2,0,IF(E194>1,0,VLOOKUP(E194,'8'!$A$2:$B$1503,2,TRUE)))) -> 
E195: =IF(C195="","",IF(C195*D195<0,-2.5,C195-D195)) ->  | F195: =IF(E195="","",IF(E195<-2,0,IF(E195>1,0,VLOOKUP(E195,'8'!$A$2:$B$1503,2,TRUE)))) -> 
F196: =IF(E196="","",IF(E196<-2,0,IF(E196>1,0,VLOOKUP(E196,'8'!$A$2:$B$1503,2,TRUE)))) -> 
F197: =IF(E197="","",IF(E197<-2,0,IF(E197>1,0,VLOOKUP(E197,'8'!$A$2:$B$1503,2,TRUE)))) -> 
F198: =IF(E198="","",IF(E198<-2,0,IF(E198>1,0,VLOOKUP(E198,'8'!$A$2:$B$1503,2,TRUE)))) -> 
F199: =IF(E199="","",IF(E199<-2,0,IF(E199>1,0,VLOOKUP(E199,'8'!$A$2:$B$1503,2,TRUE)))) -> 
F200: =IF(E200="","",IF(E200<-2,0,IF(E200>1,0,VLOOKUP(E200,'8'!$A$2:$B$1503,2,TRUE)))) -> 
... 201 more rows

Sheet 7
A1: Q | B1: A | C1: Decision Tree for Extrapolation (Romaine Lettuce)
A2: 1 | B2: ='5'!B11 -> yes | C2: Was the model validated for interpolation?
A3: 2 | B3: yes | C3: Were data independent?
A4: 3 | B4: yes | C4: Were data collected with the same methods as dependent data except for the new independent variable being evaluated?
A5: 4 | B5: yes | C5: Were the independent variables at the same values as those used in model development?
A6: 5 | B6: yes | C6: Was there a minimum of two prediction cases per combination of independent variables?
A7: 6 | B7: yes | C7: Did all combinations of the independent variables have the same number of prediction cases?
A8: 7 | B8: yes | C8: Was the overall pAPZ ≥ 0.70?
A9: 8 | B9: yes | C9: Was pAPZ for all individual levels of independent variables ≥ 0.70?
A10: 9 | B10: yes | C10: Was a single pAPZ ≥ 0.70 for every three consecutive combinations of the independent variables?
A11: 10 | B11: =IF(CONCATENATE(B2,B3,B4,B5,B6,B7,B8,B10)="yesyesyesyesyesyesyesyes","yes","no") -> yes | C11: Was the model validated for extrapolation?
A12: Average of APZ | B12: Time
A13: Temp | B13: (blank) | C13: Total
A14: (blank)
A15: Total
A31: Instructions
A32: 1. Copy and paste values for independent variables (temperature and time) and dependent variables (observed and predicted values) into the input cells (A2:D401) in spreadsheet 6 (6!).
A33: 2. Update the pivot table (7!P1).
B34: a. Click on 7!P1 → Analyze → Refresh or (Alt + F5) → Filter for Rows → Select All → Deselect Blank → Filter for Columns → Select All → Deselect Blank.
B35: b. Click Field List, Σ Values Pull Down Menu → Value Field Settings → Select Count.
A36: 3. Answer (A) questions (Q) 2 to 6 for test data criteria in the Decision Tree by selecting "yes" or "no" from the pull down menu.
A37: 4. Change Σ Value from Count to Average
B38: a. Click Field List, Σ Values Pull Down Menu → Value Field Settings → Select Average.
B39: b. Click on any pAPZ value in the pivot table and then click on APZ Macro button to highlight pAPZ that are < 0.7.
A40: 5. Answer (A) questions (Q) 7 to 9 for model performance criteria in the Decision Tree by selecting "yes" or "no" from the pull down menu.

Sheet 8
A1: Residual | B1: APZ
A2: -2 | B2: -8.812395258e-16
A3: -1.999 | B3: 0.001
A4: -1.998 | B4: 0.002
A5: -1.997 | B5: 0.003
A6: -1.996 | B6: 0.004
A7: -1.995 | B7: 0.005
A8: -1.994 | B8: 0.006
A9: -1.993 | B9: 0.007
A10: -1.992 | B10: 0.008
A11: -1.991 | B11: 0.009
A12: -1.99 | B12: 0.01
A13: -1.989 | B13: 0.011
A14: -1.988 | B14: 0.012
A15: -1.987 | B15: 0.013
A16: -1.986 | B16: 0.014
A17: -1.985 | B17: 0.015
A18: -1.984 | B18: 0.016
A19: -1.983 | B19: 0.017
A20: -1.982 | B20: 0.018
A21: -1.981 | B21: 0.019
A22: -1.98 | B22: 0.02
A23: -1.979 | B23: 0.021
A24: -1.978 | B24: 0.022
A25: -1.977 | B25: 0.023
A26: -1.976 | B26: 0.024
A27: -1.975 | B27: 0.025
A28: -1.974 | B28: 0.026
A29: -1.973 | B29: 0.027
A30: -1.972 | B30: 0.028
A31: -1.971 | B31: 0.029
A32: -1.97 | B32: 0.03
A33: -1.969 | B33: 0.031
A34: -1.968 | B34: 0.032
A35: -1.967 | B35: 0.033
A36: -1.966 | B36: 0.034
A37: -1.965 | B37: 0.035
A38: -1.964 | B38: 0.036
A39: -1.963 | B39: 0.037
A40: -1.962 | B40: 0.038
A41: -1.961 | B41: 0.039
A42: -1.96 | B42: 0.04
A43: -1.959 | B43: 0.041
A44: -1.958 | B44: 0.042
A45: -1.957 | B45: 0.043
A46: -1.956 | B46: 0.044
A47: -1.955 | B47: 0.045
A48: -1.954 | B48: 0.046
A49: -1.953 | B49: 0.047
A50: -1.952 | B50: 0.048
A51: -1.951 | B51: 0.049
A52: -1.95 | B52: 0.05
A53: -1.949 | B53: 0.051
A54: -1.948 | B54: 0.052
A55: -1.947 | B55: 0.053
A56: -1.946 | B56: 0.054
A57: -1.945 | B57: 0.055
A58: -1.944 | B58: 0.056
A59: -1.943 | B59: 0.057
A60: -1.942 | B60: 0.058
A61: -1.941 | B61: 0.059
A62: -1.94 | B62: 0.06
A63: -1.939 | B63: 0.061
A64: -1.938 | B64: 0.062
A65: -1.937 | B65: 0.063
A66: -1.936 | B66: 0.064
A67: -1.935 | B67: 0.065
A68: -1.934 | B68: 0.066
A69: -1.933 | B69: 0.067
A70: -1.932 | B70: 0.068
A71: -1.931 | B71: 0.069
A72: -1.93 | B72: 0.07
A73: -1.929 | B73: 0.071
A74: -1.928 | B74: 0.072
A75: -1.927 | B75: 0.073
A76: -1.926 | B76: 0.074
A77: -1.925 | B77: 0.075
A78: -1.924 | B78: 0.076
A79: -1.923 | B79: 0.077
A80: -1.922 | B80: 0.078
A81: -1.921 | B81: 0.079
A82: -1.92 | B82: 0.08
A83: -1.919 | B83: 0.081
A84: -1.918 | B84: 0.082
A85: -1.917 | B85: 0.083
A86: -1.916 | B86: 0.084
A87: -1.915 | B87: 0.085
A88: -1.914 | B88: 0.086
A89: -1.913 | B89: 0.087
A90: -1.912 | B90: 0.088
A91: -1.911 | B91: 0.089
A92: -1.91 | B92: 0.09
A93: -1.909 | B93: 0.091
A94: -1.908 | B94: 0.092
A95: -1.907 | B95: 0.093
A96: -1.906 | B96: 0.094
A97: -1.905 | B97: 0.095
A98: -1.904 | B98: 0.096
A99: -1.903 | B99: 0.097
A100: -1.902 | B100: 0.098
A101: -1.901 | B101: 0.099
A102: -1.9 | B102: 0.1
A103: -1.899 | B103: 0.101
A104: -1.898 | B104: 0.102
A105: -1.897 | B105: 0.103
A106: -1.896 | B106: 0.104
A107: -1.895 | B107: 0.105
A108: -1.894 | B108: 0.106
A109: -1.893 | B109: 0.107
A110: -1.892 | B110: 0.108
A111: -1.891 | B111: 0.109
A112: -1.89 | B112: 0.11
A113: -1.889 | B113: 0.111
A114: -1.888 | B114: 0.112
A115: -1.887 | B115: 0.113
A116: -1.886 | B116: 0.114
A117: -1.885 | B117: 0.115
A118: -1.884 | B118: 0.116
A119: -1.883 | B119: 0.117
A120: -1.882 | B120: 0.118
A121: -1.881 | B121: 0.119
A122: -1.88 | B122: 0.12
A123: -1.879 | B123: 0.121
A124: -1.878 | B124: 0.122
A125: -1.877 | B125: 0.123
A126: -1.876 | B126: 0.124
A127: -1.875 | B127: 0.125
A128: -1.874 | B128: 0.126
A129: -1.873 | B129: 0.127
A130: -1.872 | B130: 0.128
A131: -1.871 | B131: 0.129
A132: -1.87 | B132: 0.13
A133: -1.869 | B133: 0.131
A134: -1.868 | B134: 0.132
A135: -1.867 | B135: 0.133
A136: -1.866 | B136: 0.134
A137: -1.865 | B137: 0.135
A138: -1.864 | B138: 0.136
A139: -1.863 | B139: 0.137
A140: -1.862 | B140: 0.138
A141: -1.861 | B141: 0.139
A142: -1.86 | B142: 0.14
A143: -1.859 | B143: 0.141
A144: -1.858 | B144: 0.142
A145: -1.857 | B145: 0.143
A146: -1.856 | B146: 0.144
A147: -1.855 | B147: 0.145
A148: -1.854 | B148: 0.146
A149: -1.853 | B149: 0.147
A150: -1.852 | B150: 0.148
A151: -1.851 | B151: 0.149
A152: -1.85 | B152: 0.15
A153: -1.849 | B153: 0.151
A154: -1.848 | B154: 0.152
A155: -1.847 | B155: 0.153
A156: -1.846 | B156: 0.154
A157: -1.845 | B157: 0.155
A158: -1.844 | B158: 0.156
A159: -1.843 | B159: 0.157
A160: -1.842 | B160: 0.158
A161: -1.841 | B161: 0.159
A162: -1.84 | B162: 0.16
A163: -1.839 | B163: 0.161
A164: -1.838 | B164: 0.162
A165: -1.837 | B165: 0.163
A166: -1.836 | B166: 0.164
A167: -1.835 | B167: 0.165
A168: -1.834 | B168: 0.166
A169: -1.833 | B169: 0.167
A170: -1.832 | B170: 0.168
A171: -1.831 | B171: 0.169
A172: -1.83 | B172: 0.17
A173: -1.829 | B173: 0.171
A174: -1.828 | B174: 0.172
A175: -1.827 | B175: 0.173
A176: -1.826 | B176: 0.174
A177: -1.825 | B177: 0.175
A178: -1.824 | B178: 0.176
A179: -1.823 | B179: 0.177
A180: -1.822 | B180: 0.178
A181: -1.821 | B181: 0.179
A182: -1.82 | B182: 0.18
A183: -1.819 | B183: 0.181
A184: -1.818 | B184: 0.182
A185: -1.817 | B185: 0.183
A186: -1.816 | B186: 0.184
A187: -1.815 | B187: 0.185
A188: -1.814 | B188: 0.186
A189: -1.813 | B189: 0.187
A190: -1.812 | B190: 0.188
A191: -1.811 | B191: 0.189
A192: -1.81 | B192: 0.19
A193: -1.809 | B193: 0.191
A194: -1.808 | B194: 0.192
A195: -1.807 | B195: 0.193
A196: -1.806 | B196: 0.194
A197: -1.805 | B197: 0.195
A198: -1.804 | B198: 0.196
A199: -1.803 | B199: 0.197
A200: -1.802 | B200: 0.198
... 1303 more rows
